{"text_format":"1","workbook":"xlsx","n_sheets":4,"sheets":["Récap","Fiches","stats","FormatFiche"],"not_rendered":{"charts":0,"images":199,"macros":1,"external_links":0,"defined_names":21,"comments":0,"pivot_tables":0},"unopened":[],"bounds":{"document_bytes":16777216,"sheet_cells":100000,"rows_first":2000,"rows_last":500,"rows_between":2000,"halvings":0,"cell_chars":16384,"cell_head_chars":4096},"cells_cut":0,"cells_raw":0,"read":"whole","date_system":"1900"}

{"sheet":"Récap","index":0,"n_rows":120,"n_cols":13,"rows_kept":120,"cut":false,"hidden":false,"merged":[]}
[]
[]
[]
[]
[null,1,2,3,4,5,6,7,8,9,10,11,12]
["Produit","Type de solution","Classe produit","Type de bâtiments visés","Fabricant","Matériaux","Disponibilité Pays","Stade d'évolution","En quoi est-ce démontable ?","Descriptif","Site source","Liens","Images"]
["Assemblage Poteau / Toit","Système constructif","Assemblage","Tout type","?","Divers","Inconnue","Diffusion limitée","Fixation mécanique par tige filetée","La tige filetée a une durée de vie importante et permet de ne pas mettre en péril la structure assemblée en nécessitant un remplacement de l'élément assembleur.","Publication","Transformable_building_structures"]
["Ensemble plancher / revêtement / cloisons démontables 1","Système constructif","Assemblage","Sauf habitat individuel","Etat Canadien","Divers","France","Recherche et Développement","Assemblage par fixation mécanique","Voir schéma :\nStructure de plancher en dalles béton précontraintes sur profilés métalliques, plancher bois sur plots, cloisons démontables, réseaux passés entre le revêtement sur plot et la structure du plancher.","Publication","DfD_Guide_OfficeBldgs"]
["Ensemble plancher / revêtement / cloisons démontables 2","Système constructif","Assemblage","Sauf habitat individuel","Etat Canadien","Divers","France","Recherche et Développement","Assemblage par fixation mécanique","Voir schéma :\nPlancher en dalle béton sur bac métallique nervuré, posé sur structure métallique en profilés à âme évidée, faux plafond sous suspentes, passage des réseaux en faux plafond.","Publication","DfD_Guide_OfficeBldgs"]
["Liaison plancher / façade préfabriqués","Système constructif","Assemblage","Tout type","Etat Canadien","Divers","France","Recherche et Développement","Assemblage par fixation mécanique","Voir schéma :\nDétail De section intérieure avec plancher en béton pré contraint fixé sur profilé métallique, panneaux de façade préfabriqués\nTrappe d'accès à l'élément d'assemblage plancher / panneau de façade supérieur.","Publication","DfD_Guide_OfficeBldgs"]
["Liaison plancher façades métallique","Système constructif","Assemblage","Tout type","Etat Canadien","Divers","France","Recherche et Développement","Assemblage par fixation mécanique, boulonnage","Voir schéma :\nDétail de section extérieure en structure métallique avec mur rideau vitré en revêtement extérieur.","Publication","DfD_Guide_OfficeBldgs"]
["Assemblage de fenêtre par chevauchement","Système constructif","Assemblage","Tout type","?","Divers","Inconnue","Diffusion limitée","Assemblage par fixation mécanique","Les détails ci-dessous présentent la différence entre une configuration d'assemblage n'autorisant pas le démontage d'un vitrage (en haut à gauche) et une proposition de modification le permettant. Une modification de la géométrie de la jonction supérieure du vitrage a été adaptée en ne présentant qu'une butée en lieu et place d'une accroche par frottement a l'élément support en contact supérieur. La géométrie de ce dernier est également adaptée à cette nouvelle configuration.","Publication","Transformable_building_structures"]
["Liaison mur / toit","Système constructif","Assemblage","Tout type","?","Divers","Inconnue","Diffusion limitée","Le retrait de la languette métallique permet de séparer les éléments","L'illustration ci-contre décrit les différentes étapes du démontage des éléments. C'est un schéma de principe à adapter au cas étudié.","Publication","Transformable_building_structures"]
["Liaison plancher / cloison ","Système constructif","Structure","Tout type","?","Divers","Inconnue","Diffusion limitée","Voir le descriptif ci-dessous","Les aspects ayant l'impact principal sur le potentiel de démontabilité de cette configuration sont les suivants :\n- Haut niveau d'indépendance entre les groupes assemblés ayant des fonctionnalités et des durées de vie différentes.\n- Utilisation de connexions démontables entre les groupes assemblés : support, mur de séparation, électricité et porte\n- Utilisation d'intermédiaires entre le mur de séparation et les installations électriques, ainsi qu'entre le mur de séparation et le plancher\n- Utilisation de pièces avec des fonctionnalités d'auto-verrouillage intégrés","Publication","Transformable_building_structures.pdf"]
["Mur flexible pour intégration prises électriques séparables","Système constructif","Assemblage","Tout type","?","PVC","Inconnue","Diffusion limitée","Les prises électriques sont placés dans un rail métallique et ainsi désolidarisées du mur","Ce type de rail peut se mettre en place dans différentes configurations, verticalement ou horizontalement. Ils permettent une maintenance et un remplacement des prises et du réseau électrique aisé.","Publication","Transformable_building_structures"]
["Plancher Béton Préfabriqué Démontable : Bestcon 30","Système constructif","Assemblage","Tout type","Netherland","Béton, Métal","Pays-Bas","Diffusion limitée","Séparation des dalles de plancher + fixation par boulonnage","Un élément métallique divise l'appui du plancher en 4 parties égales. Les dalles de plancher sont insérées dans chacune des cavités puis fixés par des vis sur les poteaux hauts et bas.","Publication","http://books.google.fr/books?id=n-kSIU8jIaUC&pg=PA69&lpg=PA69&dq=demountable+precast+system&source=bl&ots=PdOu-rCeF9&sig=Ir35YW_ruMVsFEKcsyVbMtdMlIw&hl=fr&sa=X&ei=lJcxU8GYJbCa0QWDlICYDA&ved=0CC4Q6AEwAA#v=onepage&q=demountable%20precast%20system&f=false"]
["Plancher Béton Préfabriqué Démontable : Cd 20","Système constructif","Assemblage","Tout type","Netherland","Béton, Métal","Pays-Bas","Diffusion limitée","Les dalles peuvent être démontées simplement en enlevant le poteau supérieur","Les dalles de plancher conçues à cet effet sont insérées dans des barrettes métalliques ancrées dans les poteaux. Les dalles sont fixées entres les poteaux hauts et bas. Les éléments de fixation on une longueur égale à la moitié de l'épaisseur des dalles.","Publication","http://books.google.fr/books?id=n-kSIU8jIaUC&pg=PA69&lpg=PA69&dq=demountable+precast+system&source=bl&ots=PdOu-rCeF9&sig=Ir35YW_ruMVsFEKcsyVbMtdMlIw&hl=fr&sa=X&ei=lJcxU8GYJbCa0QWDlICYDA&ved=0CC4Q6AEwAA#v=onepage&q=demountable%20precast%20system&f=false"]
["Plancher Béton Préfabriqué Démontable : Matrixbow","Système constructif","Structure","Tout type","Netherland","Béton, Métal","Pays-Bas","Diffusion limitée","Fixation mécanique du poteau inférieur au poteau supérieur via les éléments de planchers","Les dalles de plancher sont fixées entre elles par des tiges filetées les traversant de par en par et venant se fixer sur des plaquettes métalliques incorporées dans les poteaux supérieurs et inférieurs.","Publication","http://books.google.fr/books?id=n-kSIU8jIaUC&pg=PA69&lpg=PA69&dq=demountable+precast+system&source=bl&ots=PdOu-rCeF9&sig=Ir35YW_ruMVsFEKcsyVbMtdMlIw&hl=fr&sa=X&ei=lJcxU8GYJbCa0QWDlICYDA&ved=0CC4Q6AEwAA#v=onepage&q=demountable%20precast%20system&f=false"]
["Core Wall","Système constructif","Structure","Tout type","Bensonwood","Bois, Divers","USA, UK, Japon, Canada","Diffusion limitée","Conçu pour faciliter la démontabilité des éléments constitutifs","Ce mur est conçu pour préserver l'indépendance entre les différents éléments le composant. On peut ainsi démonter indépendamment chaque élément et les modifier sans engager la pérennité de l'élément structurel.","Publication","http://www.openprototype.com/projects/open1/features.html"]
["Plancher creux","Système constructif","Structure","Tout type","Bensonwood","Bois, Divers","USA, UK, Japon, Canada","Diffusion limitée","Conçu pour faciliter la démontabilité","Ce plancher est conçu pour préserver l'indépendance entre les différents éléments le composant. On peut ainsi démonter indépendamment chaque élément et les modifier sans engager la pérennité de l'élément structurel.","Publication","http://www.openprototype.com/projects/open1/features.html"]
["Connexions Indirects","Mode constructif","Assemblage","Tout type","?","Divers","France","Très diffusé","Principe de construction favorisant la déconstruction","Les connecteurs directs s'emboîtent ou se chevauchent avec des composants, ce qui peut rendre difficile la déconstruction en raison du processus d'assemblage général. Les connecteurs indirects sont habituellement plus faciles à déconstruire de par leur interchangeabilité et l'indépendance des composants. Les connecteurs colmatés tels que des connecteurs collés ou soudés peuvent être pratiquement impossible à déconstruire, à moins que la charge de fixation soit très douce, comme pour le mortier de chaux. ","Publication","Design for Deconstruction - SEDA Design Guide for Scotland"]
["Séparation des éléments au sein d'un plancher","Mode constructif","Structure","Tout type","?","Divers","Inconnue","Très diffusé","La séparation des éléments dans un plancher autorise leur démontabilité","Ce mode constructif peut être adapté à différents types de plancher. Les schéma ci-contre décrivent plusieurs types de configurations. Cela permet de désolidariser les différents éléments considérés, leur donnant un fort potentiel de démontabilité et permettre ainsi leur remplacement sans engager la pérennité des ouvrages structurels.","Publication","Transformable_building_structures"]
["Armoire Électrique","Complexe","Electricité","Tout type","Legrand","Divers","France","Très diffusé","cadre amovible et des flancs démontables individuellement","Ce type d'armoire peut être déplacé en cas de modification de l'organisation des locaux techniques. La flexibilité des éléments facilite également les opérations de maintenance.","Fabricant","http://www.legrand.fr/professionnels/les-coffrets-xl3-160-isolant_371.html"]
["Armoire Informatique","Complexe","Electricité","Tout type","Legrand","Divers","France","Très diffusé","panneaux latéraux et arrières amovibles et structure entièrement démontable","Ces baies se montent et se démontent simplement. Une accessibilité totale est garantie grâce aux panneaux latéraux et arrières amovibles et à la structure entièrement démontable. La flexibilité des éléments facilite également les opérations de maintenance.","Fabricant","http://www.legrand.fr/professionnels/baies-lcs2_2266.html"]
["Assemblage autour d'une étoile à 4 côtés","Complexe","Assemblage","Tout type","?","Métal","Inconnue","Diffusion limitée","Fixation par glissement autour d'un élément fixe","Ce type de fixation permet d'envisager diverses applications concernant l'assemblage de bâtiments par groupes d'éléments.\n\nAssemblage non structurel. ","Publication","Transformable_building_structures"]
["Assemblage Bout À Bout","Complexe","Charpente","Tout type","Non spécifié","Bois","France","Très diffusé","Assemblage minimisant le recours au métal","Par colle, clous ou vis, ce type d'assemblage permet d'éviter au maximum l'utilisation de métal dans l'acte de construire.\nPas démontable si utilisation de colle.\nAttention également avec les pièces d'assemblage en bois qui avec le temps travaillent et rendent l'assemblage indémontable.\nPour la démontabilité, assemblage bout à bout intéressant mais sans pièce de bois de liaison.","Site spécialisé","http://www.bois.com/decorer/bricoleurs/assemblages-classiques/assemblages-bout-bout"]
["Assemblage Démontable pour structure métallique","Complexe","Assemblage","Industriel","Universidad Politécnica de Cartagena","Métal","Espagne","Diffusion limitée","démontabilité comme propriété intrinsèque, fixations mécaniques par tiges filetées et boulons","Assemblage développé par l'université de Carthagène dans le cadre d'un projet destiné à l'élaboration d'un type d'assemblage facilement démontable. L'élément intermédiaire représenté en vert et orange sur le schéma ci-dessous permet de désolidariser les deux éléments structurels et ainsi de faciliter leur démontage.","Site spécialisé","http://www.upct.es/~deyc/consulting.php"]
["Assemblage façades Centre Pompidou","Complexe","Assemblage","Sauf habitat individuel","?","Métal","Inconnue","Diffusion limitée","Éléments mécaniques emboitables","Possible pour bâtiments de grandes dimensions, industriel, tertiaire… Difficile pour le logement.","Publication","Transformable_building_structures"]
["Assemblage façades Yacht House","Complexe","Assemblage","Tout type","?","Métal","Inconnue","Diffusion limitée","Éléments mécaniques emboitables et boulonnables","La croix métallique en partie centrale permet de désolidariser les éléments assemblés.","Publication","Transformable_building_structures"]
["Assemblage poteau / toit structure métallique","Complexe","Assemblage","Industriel","spaciotempo","Métal","France","Très diffusé","La jonction est réalisée par une barre métallique démontable","Assemblage destiné aux constructions démontables métalliques. Ce système permet de minimiser le temps de manipulation par les ouvriers en hauteur.","Fabricant","spaciotempo-cubiertas-desmontables.pdf"]
["Bloc Fixation Wc","Complexe","Sanitaires","Tout type","ErgoWall","Divers","Belgique","Très diffusé","Conçu pour une démontabilité facilitée","Ce bloc WC intègre l'ensemble des éléments d'une installation sanitaire classique. Il est conçu pour être entièrement démontable. Il permet d'améliorer l'agrément intérieur tout en facilitant la démontabilité et l'adaptabilité de l'espace intérieur.","Fabricant","http://www.ergowall.com/produits.php"]
["Charpente Métallique","Complexe","Structure","Industriel","Galco (France Métal)","Métal","France","Très diffusé","Elément d'assemblage en filière sèche dévissable","D'une grande solidité (les pièces galvanisées sont à l'abri de la rouille), ces bâtiments métalliques sont des construction facilement réalisables. \nLes charpentes métalliques sont adaptées à de multiples utilisations, en tant que sites de production, ateliers, locaux techniques associés à des mairies, centres de contrôle technique, etc.","Fabricant","http://www.galco-cm.com/"]
["Clapet - Vanne Démontable","Complexe","Canalisation","Tout type","Plasson","Divers","France","Très diffusé","Fixation par vis","Raccords mécaniques destinés à l'assemblage des tubes en pression de DN inférieurs ou égaux à 160mm, utilisés pour les canalisations véhiculant de l'eau potable et de l'eau pour un usage général à des températures inférieures ou égales à 40°C (au-delà de 20°C, appliquer un coefficient de détimbrage), à l'attention des collectivités, des secteurs agricoles ou industriels . Application eau chaude EXCLUE.","Fabricant","http://www.plasson.fr/produit/clapet-vanne-demontable"]
["Climatiseur Au Sol Sans Unité Extérieure","Complexe","Climatisation","Tout type","Artel (easywind), Fimer (windy 4HP)","Divers","France","Très diffusé","Élément déplaçable facilement","Ce type de climatiseur a comme intérêt principal d'être mobile. Sans fixations au sol, il peut être installé ou non en fonction du besoin. Il peut participer également à une démarche d'optimisation des ressources d'un bâtiment, en disposant des unités dans les pièces présentant ponctuellement des besoins.","Fabricant","http://www.airnaturel.com/climatisation-reversible-easywind.html?codesf=296084383&utm_medium=cpc&utm_campaign=Shopping-flux&utm_term=Climatisation+r%C3%A9versible+EASYWIND&utm_source=LeGuide%28via+Shopping+Flux%29"]
["Cloison Démontable Sgc Clip-In","Complexe","Menuiserie intérieure","Tout type","Dispano","Métal","France","Diffusion limitée","Les panneaux de verre sont clipsés l’un à l’autre grâce à des profilés de raccords minces et transparents","Ce système comporte une rainure, façonnée sur la tranche verticale des vitrages. Grâce à des profilés de raccords minces et transparents, les panneaux de verre sont clipsés l’un à l’autre.\n\nLa jonction des vitrages bord à bord est prévue pour les angles droits ou les raccords en T des cloisons de refends sur les circulations.","Fabricant","http://www.dispano.fr/bois-decoratifs/cloisons-demontables-XA190"]
["Cloisons Amovibles Et Démontables","Complexe","Cloisonnement intérieur","Tout type","ABCD International","Vitrage, aluminium, bois, plâtre","France","Très diffusé","démontabilité comme propriété intrinsèque","Il existe un nombre important de types de cloisons amovibles offrant des modes de fixations variées. Se tourner vers les fabricants pour des détails sur ces techniques.","Fabricant","http://www.abcd-international.fr/fr/cloisons-demontables.html"]
["Complexe constructif bois","Complexe","Structure","Habitat individuel","?","Divers","USA","Diffusion limitée","Fixation sur rails incorporés dans le plancher","Les blocs SIP (Structural Insulated Panels) simplifient la connexion et l'assemblage entre le mur vertical et et le toit.\nIl combine le revêtement de toit, l'isolation et éventuellement la finition de plafond en un seul composant.\nL'intérêt du design de cet élément est qu'il peut être facilement démonté et utilisé comme un élément complet pour un autre bâtiment. La combinaison de différentes fonctionnalités comme élément structurel, isolant et revêtements intérieurs et extérieurs permet d'envisager une utilisation variée non destiné à être directement envoyé en décharge après l'utilisation. Cette configuration a cependant l'inconvénient de présenter des difficultés de recyclage compte-tenu de cette combinaison d'éléments hétérogènes.","Publication","DFD.pdf"]
["Connexion nœud","Complexe","Assemblage","Tout type","?","Bois","Inconnue","Très diffusé","Pas de joint ciment ni collage - Fixation mécanique","Les éléments structurels sont empilés les uns sur les autres, avec ou sans éléments de jonction. ","Publication","CIB_W115_Conference_Proceedings_Pub_323"]
["Filtre de ventilation À Joint Sec","Complexe","Ventilation","Tout type","nasophocleous","Divers","France","Diffusion limitée","Élément posé sans fixation - Joint sec","Ce type de filtre est facilement remplaçable. Les joints périphériques secs permettent d'allier une excellente étanchéité à une démontabilité aisée. Cette dernière propriété correspond pleinement à la nécessité de changer les filtres régulièrement afin d'éviter leur encrassement et d'engendrer des pertes de charges importantes sur les réseaux aérauliques.","Batiproduits","http://www.nasophocleous.com/default.aspx?articleID=383"]
["Groupe Chauffage Autonome","Complexe","Chauffage","Industriel","Losberger","Divers","France","Très diffusé","Groupe désolidarisé du bâtiment avec accès par l'extérieur","Ce groupe chauffage autonome présente l'avantage d'être désolidarisé du bâtiment. La facilité de maintenance, et le manque d'encombrement intérieur sont en sont les principaux atouts. A noter cependant que ce type d'installation occasionne des pertes importantes dues à l'écart de température entre l'air chauffé et l'environnement extérieur.\n\nIl est destiné à une utilisation sur des bâtiments permanents et est entièrement démontable.","Fabricant","http://www.losberger.fr/?n=223-144#"]
["Imposte De Porte Démontable","Complexe","Menuiserie intérieure","Tout type","Malerba","Vitrage, aluminium, bois, PVC","France","Très diffusé","Fixation par verrou simple en partie basse","Ce système d'imposte est simple à monter et s'adapte à différents types de menuiseries. L'imposte est fixée par un verrou simple en partie basse la calant dans la rainure en partie supérieure.","Fabricant","http://www.malerba.fr/be-np-177-0-portes-bois-imposte-demontable-sur-cf12h-va-et-vient","*"]
["Joint Pegs - Assemblage d'éléments de structure bois","Complexe","Assemblage","Tout type","?","Bois","France","Diffusion limitée","Assemblage conçu pour faciliter la démontabilité","Le mode d'assemblage mécanique et simple est intéressant, cependant l'expérience montre qu'avec le temps les structures bois ont tendance à se déformer légèrement et à bloquer les éléments d'assemblage.\nUne tige de liaison métallique dévissable serait plus pertinente en vu d'une meilleur démontabilité à long terme.","Publication","http://timberpeg.com/gallery/joinery#"]
["Joint Spline - Assemblage structure bois","Complexe","Assemblage","Tout type","Bensonwood","Bois","USA, UK, Japon, Canada","Diffusion limitée","Conçu pour faciliter la démontabilité","Le mode d'assemblage mécanique et simple est intéressant, cependant l'expérience montre qu'avec le temps les structures bois ont tendance à se déformer légèrement et à bloquer les éléments d'assemblage.\nUne tige de liaison métallique dévissable serait plus pertinente en vu d'une meilleur démontabilité à long terme.","Publication","http://www.bensonwood.com/about/timeline.cfm"]
["Jonction Plancher / Murs Verticaux","Complexe","Structure","Tout type","Gipen","Bois","France","Très diffusé","La jonction est réalisée par des platines démontables","Le type de jonction présenté dans les illustrations ci-jointes n'est qu'un exemple parmi d'autres des jonctions planchers / murs verticaux réalisées par platines démontables.","Fabricant","http://www.gipen.fr/gamme-systemes-constructifs-professionnels/produits/ossature-bois-habitat-individuel.html#.Uzu5RPl_tzo"]
["Montant De Menuiserie Démontable","Complexe","Menuiserie extérieure","Tout type","?","Métal","USA","Diffusion limitée","Conçu pour faciliter la démontabilité","La finition extérieure est similaire à une finition traditionnelle afin de garantir l'étanchéité à l'eau. La partie intérieure est garnie avec un chambranle de bois pouvant être facilement enlevé, ce qui permet à la fenêtre d'être retirée de l'intérieur. ","Publication","DFD.pdf"]
["Montant De Menuiserie Démontable","Complexe","Menuiserie extérieure","Tout type","?","Métal","USA","Diffusion limitée","Conçu pour faciliter la démontabilité","Une languette en aluminium est placé en extérieur. Elle permet une connexion étanche à l'eau entre la vitre et le revêtement, et permet à la fenêtre d'être facilement démontée.","Publication","DFD.pdf"]
["Nœud d'assemblage rotulien de structure métallique","Complexe","Assemblage","Tout type","Alexis Rochas","Métal / résine plastique","USA","Recherche et Développement","Démontable à volonté - Eléments fixés entre eux mécaniquement","La structure de OCTA.BOT est composée de raccords universels abritant huit rotules permettant à chaque entretoise de tourner librement autour d'un point de travail commun. Le joint à rotule permet une adaptation de la structure aux mouvements. La combinaison de longueurs d'entretoises détermine automatiquement les angles complexes de l'ensemble et rend une liaison rigide autobloquante. Tous les raccords de OCTA.BOT sont réutilisables, permettant à la structure un démantèlement et une reconfiguration aisée.","Site spécialisé","http://www.dexigner.com/news/19753"]
["Panneaux De Plancher Métalliques","Complexe","Structure","Tout type","?","Métal","France","Très diffusé","Fixation mécanique en filière sèche","- Les panneaux de plancher sont creux pour permettre le passage des réseaux techniques, et ainsi faciliter leur démontage\n- Elément monobloc reposant sur des profilés en périphérie et fixation mécanique en filière sèche\n- Démontabilité du plancher et des éléments le traversant facilitée","Publication","http://fire.nist.gov/bfrlpubs/build02/PDF/b02153.pdf"]
["Pied De Poteau Mobile Sur Rails","Complexe","Structure","Industriel","Omega Structures","Métal","France","Très diffusé","Appui sur rails - Le pied de poteau peu être retiré après démontage des poteaux","L'appui se faisant sur rail, le pied de poteau peu être retiré après démontage des poteaux.\nLe poteau peut être déplacé pour modifier un cloisonnement.\n\nIntéressant pour des locaux où le cloisonnement doit être modifié.","Fabricant","http://www.omegastructures.com/fr-FR/contenidos/66/autres.aspx"]
["Plinthes pour passage de réseaux","Complexe","Accessoire","Tout type","?","PVC","Inconnue","Recherche et Développement","Le support est fixé par vis au mur et la plainte est simplement démontable, autorisant une intervention simple sur les câbles","Différentes configurations sont possibles et peuvent s'appliquer à différents types de réseaux pour des utilisations variées (réseau électrique, fibre optique, chemin de câble pour utilisations spécifique comme les studios de musique,…).","Publication","plainte avec réseaux.pdf"]
["Plancher Bois Démontable","Complexe","Revêtement de sol","Tout type","Mobilierpliant","Bois","France","Très diffusé","Rainures d'assemblage","Ce type de plancher sont conçus pour pouvoir être monté et démonté régulièrement sans difficultés. Les dalles de plancher s'assemblent entre elles via une association de crans mâle / femelle.","Fabricant","http://www.mobilierpliant.com/mobiaccueil.htm"]
["Rampe D'Accès Pmr","Complexe","Accessibilité","Tout type","Axsol","Divers","France","Très diffusé","Pliable - fixé mécaniquement - réutilisable","Ce type de rampe d'accès peut être utilisé à titre temporaire ou permanent. Cela permet une adaptation aux exigences d'accès des bâtiments concernés.","Fabricant","http://www.axsol.fr/produit-axsol-accueil-rampes--3.htm"]
["Thermasteel","Complexe","Structure","Tout type","Thermasteel","Bois","USA","Diffusion limitée","Conçu pour favoriser la démontabilité","Le système Thermasteel est composé de panneaux indépendants. Ces derniers intègrent un isolant rigide lié à une section en Métal légère par fixation sous haute chaleur et pression. Aucun adhésif n'est utilisé dans les composants ou les assemblages. Toutes les liaisons sont réalisées par des vis auto-taraudeuses. Comme toutes les connexions utilisées pour assembler le système Thermasteel sont simples et \" sèches \", le système se prête très facilement au démontage.\nUn deuxième avantage de ce système est sa résistance à la moisissure. ","Publication","http://www.thermasteelcorp.com/"]
["Toilettes sèches","Complexe","Sanitaires","Habitat individuel","?","Divers","France","Très diffusé","L'ensemble est démontable facilement et rapidement de par sa configuration simple","Ce type de sanitaire peut paraître non adapté à une utilisation dans des bureaux ou des bâtiments tertiaire. Il existe cependant aujourd'hui des nouveaux produits plus conventionnels permettant d'envisager une diffusion à plus grande échelle.","Site spécialisé","http://fr.wikipedia.org/wiki/Toilettes_s%C3%A8ches"]
["Truss Connexion - Assemblage toiture paroi","Complexe","Assemblage","Tout type","?","Métal","USA","Diffusion limitée","Conçu pour faciliter la démontabilité","Ce type d'assemblage permet de limiter le nombre de vis utilisées au sein de l'assemblage. La consommation de matière est ainsi réduite et permet de réduire le temps nécessaire au démontage de l'assemblage.","Publication","DFD.pdf"]
["Faux plafond bois - fixation par clips","Complexe","Plafond","Tout type","Hunter Douglas","Bois","France","Très diffusé","Fixation par clips","Ce système est constitué de panneaux à base de lames de bois massif liées les unes aux autres par des tourillons aluminium. L'utilisation d'un système d'assemblage mâle/femelle des tourillons garantit un bon alignement des panneaux. Les panneaux démontables sont fixés à des porteurs en métal au moyen d'un clip.","Fabricant","http://www.archiexpo.fr/prod/hunter-douglas/panneaux-grillages-bois-faux-plafonds-50316-609216.html"]
["Revêtement murale aimanté","Complexe","Revêtement intérieur","Tout type","W-all Ventures","Divers","France","Diffusion limitée","Fixation par aimants fixés sur rails","Ce système autorise une modification des revêtements muraux au gré des envies des occupants. Reste pour l'instant à un prix élevé et donc difficilement accessible à un large public.","Site spécialisé","http://blog.bmykey.com/category/immobilier/design-interieur/page/12/"]
["Faux plafond bois - fixation par crochets","Complexe","Plafond","Tout type","Arotcharen","Divers","France","Diffusion limitée","les dalles de bois sont assemblés à des câbles de maintien suspendus au plafond par des crochets","Ce type de faux plafond a été utilisé dans le projet du siège social de Quicksilver conçu par l'architecte Patrick Arotcharen. \nLa particularité de ce système et l'accroche par simples crochets à l'élément support.\nCela facilite les opérations de maintenance et l'accès aux gaines techniques.","Site spécialisé","http://www.actineo.fr/reportage/quiksilver"]
["Plinthe En Liège","Complexe","Revêtement intérieur","Tout type","Alsacork","liège naturel","France","Très diffusé","Fixation par vissage sans colle du support et intégration simple de la plinthe","Fourni avec l'attache en plastique, à visser sur le mur. La plinthe s'insère toute seule dans l'attache, et permet le passage de réseaux électriques.","Fabricant","http://www.alsacork.fr/boutique-online/mat%C3%A9riaux-annexes/plinthes"]
["\"Velcro\" Métallique","Elément","Assemblage","Tout type","Metaklett","Métal","Allemagne","Diffusion limitée","Permet de désassembler par simple séparation des deux éléments de fixation","Cette technologie résiste à des températures jusqu'à 800 °C et permet de soutenir des charges jusqu'à 35 tonnes/m² si les charges sont appliquées parallèlement au système d'accroche. \n\nSon application est aujourd'hui limitée à l'industrie et à l'automobile. Ses propriétés intrinsèques permettent toutefois d'envisager raisonnablement des applications à grande échelle dans le domaine de la construction.","Nobatek","http://www.metaklett.de/technologie.html"]
["Adhésif Sur Panneaux De Bois Intérieur","Elément","Revêtement intérieur","Tout type","?","Bandes adhésives","France","Diffusion limitée","Capacité adhésive adpatée à l'utilisation","L'adhésif doit être choisie méticuleusement pour que l'intensité du collage permette à la fois de fixer correctement les panneaux de bois, tout en autorisant leur décollage sans trop de difficultés.","Publication","DFD.pdf"]
["Ancres À Enfoncer, Rattraper Verticalité","Elément","Accessoire","Tout type","Piveteau","Métal","France","Très diffusé","La fixation par enfoncement permet de retirer l'ancre par action de traction","Pas pour bâtiment d'habitation ou régis par le code de la construction, pour terrasses, abris, structures légères de loisir.\n\nGalvanisées et recouvertes d'un laquage polyester vert, les ancres à enfoncer permettent de rattraper la verticalité du poteau après enfoncement.","Fabricant","http://www.piveteaubois.com/e-Sales/esa/default.jsp?mainpage=ItemList.jsp&denied=yes&%40where.CategoryParent%3ACategoryID%40op.eq%40comp.Items=b2c_QuincailleriePoteaux&utm_medium=PiedPoteauxAncres&utm_source=PIProduit"]
["Assemblage métallique simplifié","Elément","Assemblage","Sauf habitat individuel","?","Métal","UK","Diffusion limitée","Les poutres disposent d'une platine venant se reposer sur une tige métallique - Même action possible lors de l'action du démontage","Assemblage simplifié. Nécessite une platine adaptée prévue en usine.\nAdapté à des planchers fins et légers.","Publication","DfD_16082010"]
["Assemblage par glissement","Elément","Assemblage","Sauf habitat individuel","Quicon","Métal","UK","Diffusion limitée","Les poutres Métal sont glissés sur tiges boulonnées et reposent sur une platine adaptée avec trous oblongs - Même action possible lors de l'action du démontage","Quicon system.\n\nIl existe également les systèmes MXB-5, Moducon-2000 et SMT systems (aucunes informations supplémentaires n'ont été trouvées).","Publication","DfD_16082010\nhttp://www.newsteelconstruction.com/wp/quicon-wins-contract-at-ikea/"]
["Assemblage triangulaire","Elément","Assemblage","Sauf habitat individuel","Emilio Perez Piñero","Métal","Inconnue","Recherche et Développement","Permet de réaliser un assemblage triangulaire à l'aide d'un système tige filetée écrou","Est adapté à une typologie particulière d'assemblage nécessitant une fixation triangulaire.","Publication","ETSA_16-1.pdf"]
["Assemblages Minimisant La Matière Utilisée","Elément","Assemblage","Tout type","Ines Gaisset","Bois, Métal","Inconnue","Recherche et Développement","Conçu pour faciliter la démontabilité et réduire la quantité de matière utilisée dans les assemblages","Dans le cadre de son Master  en Génie Civil et Environnement réalisé au MIT (Massachussetts Institute of Technology), Inès Gaisset présente les résultats de ses travaux concernant les évolutions possibles dans le domaine des bâtiments démontables.\nElle présente dans ce rapport des typologies d'assemblages aux applications possibles dans la construction de bâtiments, permettant un démontage facilité des éléments assemblés.\nOn peut voir ci-dessous à droite un exemple d'assemblage bois / bois. La découpe de petit cercle dans les angles de l'assemblage rend le démontage plus rapide.","Publication","Thèse de Ines Gaisset au MIT"]
["Bâche De Toit Simple et Double Peau","Elément","Couverture","Industriel","Omega Structures","Polycarbonate","France","Très diffusé","Utilisé dans le cadre de constructions temporaires démontables","Ce type de revêtement de toit est largement utilisé dans des constructions éphémères démontables.","Fabricant","http://www.omegastructures.com/fr-FR/contenidos/65/toits.aspx"]
["Boite de réservation","Elément","Accessoire","Tout type","Uniboite","PVC","France","Diffusion limitée","Facilite la démontabilité et le remplacement des câbles emprisonnés dans le béton","Permet un accès aux fourreaux de câbles emprisonnés dans une dalle béton. Evite les déchets liés à l'utilisation de matière (souvent PSE) comme coffrage perdu.","Fabricant","déchets-dde.pdf"]
["Bouche D'Aération Murale Et De Plafond","Elément","Ventilation","Tout type","Wallair","PVC","France","Très diffusé","fixation mécanique par vis","Ce type de bouche est aujourd'hui largement diffusé dans tout les types de bâtiments.","Revendeur","http://www.conradpro.fr/ce/fr/product/560584/Aerateur-mural-et-de-plafond-Mini-Style;jsessionid=2BAC51C2E58A1CB58F78F1C9BAA278FC.ASTPCEN27"]
["Brise-soleils","Elément","Protection solaire","Tout type","Uniform","Bois, Métal","France","Très diffusé","Système innovant d'accroche des lames de bois permettant la démontabilité","Les lames en bois sont montées sur des montants aluminium. Un système à vis breveté permet un démontage aisé des lames de bois. Les montants en aluminium sont également démontables (fixation mécanique par vis).","Fabricant","http://www.uniform.it/uni-wood-brise-soleil/?lang=en"]
["Calles Fixation Bardage","Elément","Assemblage","Tout type","Piveteau","Métal","France","Très diffusé","Permet de ne pas altérer les lames de bardages, restant facilement démontables"," Nécessite des lames de bardage adaptées.","Fabricant","http://www.piveteaubois.com/e-Sales/esa/default.jsp?mainpage=GalleryView.jsp&utm_medium=GammeBardageBois&%40where.ParentCategoryID=btc_bardages&utm_source=Piproduits"]
["Chapeaux De Poteaux","Elément","Sécurité","Tout type","Piveteau","PVC","France","Très diffusé","Fixation par emboitement, réutilisable","Chapeaux de poteaux destinés à l'aménagement extérieur.","Fabricant","http://www.piveteaubois.com/e-Sales/esa/default.jsp?mainpage=GalleryView.jsp&utm_medium=GammeBardageBois&%40where.ParentCategoryID=btc_bardages&utm_source=Piproduits"]
["Chaussette isolante pour Éléments De Tuyauterie","Elément","Canalisation","Industriel","Carbone +","non précisé","France","Très diffusé","Chaussette isolante adaptée à l'élément à isoler- Fixation par sangles et velcro, réutilisable sur l'élément après chaque entretien","- Absence de pont thermique\n- Confection sur mesure\n- Légèreté et tenue en forme\n- Longévité\n- Montage et démontage faciles\n- Amélioration des conditions de travail\n- Ininflammabilité\n- Pas de dégagement de fumées toxiques lors d'incendies","Fabricant","http://www.carboneplus.be/fr/produits-d-isolation/decamat/"]
["Clips Pour Revêtements de sol","Elément","Assemblage","Tout type","Piveteau","Métal","France","Très diffusé","Fixation sans colle","Il existe plusieurs types de clips adaptés à différents revêtements de sol. Ce type de système est en application sur des planchers bois, lambris ou sols en PVC.","Fabricant","http://www.piveteaubois.com/e-Sales/esa/default.jsp?mainpage=GalleryView.jsp&utm_medium=GammeBardageBois&%40where.ParentCategoryID=btc_bardages&utm_source=Piproduits"]
["Clips Sur Panneaux De Bois Intérieur","Elément","Revêtement intérieur","Tout type","?","Métal","France","Diffusion limitée","Les clips permettent de démonter facilement les panneaux de bois","Ce type de clips permet une fixation des panneaux de bois sans altérer le mur support.","Publication","DFD.pdf"]
["Clous À Deux Têtes","Elément","Assemblage","Tout type","?","Métal","France","Très diffusé","La deuxième tête fait office de levier pour démontage","Les clous à \"deux têtes\" présentent l'avantage de faciliter le démontage des éléments fixés. Ils présentent la même résistance que les clous normaux et ne remettent donc pas en questions la solidité de l'assemblage concerné. Les clous sont enfoncés jusqu'à la première tête, laissant ainsi la seconde en surface. Il suffit ensuite d'utiliser la mâchoire de l'extrémité opposée d'un marteau pour les enlever. Ils doivent cependant être utilisés pour des assemblages masqués ou difficilement accessibles, pour éviter les risques de blessures ou de déchirement de vêtements.","Publication","http://www.systemed.fr/forum-bricolage/clou-a-deux-tetes-t45584.html"]
["Connecteur Mixte","Elément","Structure","Tout type","Piveteau","Métal","France","Très diffusé","Fixation par vis","Eléments destinés à l'aménagement extérieur. Ils permettent de connecter les éléments d'une rambarde ou clôture en bois.","Fabricant","http://www.piveteaubois.com/e-Sales/esa/default.jsp?mainpage=GalleryView.jsp&utm_medium=GammeBardageBois&%40where.ParentCategoryID=btc_bardages&utm_source=PIproduits"]
["Dalle Autoporteuse Terrasse Préassemblé Pin","Elément","Revêtement de sol","Tout type","Piveteau","bois","France","Très diffusé","Ne nécessite aucun mode de fixation - Pas de désassemblage de chaque composant","L'absence d'éléments intermédiaires de fixation au sol permet une indépendance de ces éléments, autorisant une adaptabilité des espaces extérieurs et une démontabilité aisée.","Fabricant","http://www.piveteaubois.com/e-Sales/esa/default.jsp?mainpage=GalleryView.jsp&denied=yes&%40where.ParentCategoryID=b2c_Terrasses&utm_source=PIProduit&utm_campaign=LesProduitsTerrasses"]
["Dalle Striée Terrasse Préassemblé","Elément","Revêtement de sol","Tout type","Piveteau","bois","France","Très diffusé","Fixation sur plots démontables","Les plots facilitent la pose des dalles de plancher, s'adaptant aux légères variations de terrain. Se destine à des applications sur sol plats.","Fabricant","http://www.piveteaubois.com/e-Sales/esa/default.jsp?mainpage=GalleryView.jsp&denied=yes&%40where.ParentCategoryID=b2c_Terrasses&utm_source=PIProduit&utm_campaign=LesProduitsTerrasses"]
["Douilles Démontables","Elément","Electricité","Tout type","Non spécifié","Métal, PVC","France","Très diffusé","Démontage est beaucoup plus simple du fait d’un culot mieux dimensionné et de filetages mieux calibrés","Les douilles démontables ont une structure proche de celle des modèles à baïonnette, mais leur montage-démontage est beaucoup plus simple du fait d’un culot mieux dimensionné et de filetages mieux calibrés.","Forum","http://www.maisonbrico.com/conseils-bricolage/problemes-douilles,2536.html"]
["Ecoulement De Douche Vertical","Elément","Canalisation","Tout type","Wedi","Divers","France","Très diffusé","Démontable pour faciliter nettoyage des canalisations","Les écoulements verticaux présentent la particularité d'être facilement démontables. Ils permettent un démontage par la partie supérieure.","Fabricant","http://fr.wedi.de/dcadmin/dc_media/downloads/fr/_coulement_vertical_wedi_Fundo_FR_2013.pdf"]
["Elément d'encrage vissable","Elément","Fondation","Structures légères","Fixtoo","Métal","France","Très diffusé","Facilite démontabilité","Adapté aux structures légères. Encrage manuel.","Fabricant","http://www.fixtoo.fr/index-famille-417100-lng-fr.html"]
["Équerre métallique d'assemblage pour Bois Ronds","Elément","Accessoire","Tout type","Piveteau","Métal","France","Très diffusé","Fixation par vis","Élément intéressant car spécifique à l'assemblage de bois ronds (diamètre adapté). Démontable par une fixation au bois par vis. En revanche, le nombre important de vis limite son degré de démontabilité.","Fabricant","http://www.piveteaubois.com/e-Sales/esa/default.jsp?mainpage=GalleryView.jsp&utm_medium=GammeBardageBois&%40where.ParentCategoryID=btc_bardages&utm_source=PIproduits"]
["Équerre métallique d'assemblage Renforcée","Elément","Accessoire","Tout type","Piveteau","Métal","France","Très diffusé","Fixation par vis","Démontable par une fixation au bois par vis. En revanche, le nombre important de vis limite son degré de démontabilité.","Fabricant","http://www.piveteaubois.com/e-Sales/esa/default.jsp?mainpage=GalleryView.jsp&utm_medium=GammeBardageBois&%40where.ParentCategoryID=btc_bardages&utm_source=PIproduits"]
["Faux Plafond Translucide Lumineux","Elément","Plafond","Tout type","Newmat","PVC","France","Très diffusé","Conçu pour démontabilité facilité","Plafond translucide démontable classé M1 de résistance au feu, offrant une texture d'aspect verre dépoli permettant de jouer avec la lumière diffuse passant à travers les perforations.\n\nLes profils en PVC ou aluminium se fixent sur les murs. La toile est alors « clippée » sur le harpon (rail métallique) situé en périphérie du plafond. Cette opération se fait à chaud afin de donner de la souplesse à la toile et peut être répétée simplement en chauffant la toile.","Fabricant","http://newmat.com/fr/particuliers/nos-produits/gamme-newlight/index.html"]
["Fixation Invis","Elément","Assemblage","Tout type","Lamello","Divers","France","Diffusion limitée","Fixation par électro-aimant réversible","Electro-aimant invisible et démontable : Le champ magnétique en rotation du MiniMag Mx entraîne la liaison, comme une roue dentée entraîne une autre.\nLa tige filetée de la liaison se visse dans le boulon, sans contact direct et uniquement actionnée par le champ magnétique.\n\nUtilisation avec visseuse sans fil : Le mécanisme d’entrainement magnétique MiniMag Mx s’adapte sur toutes les visseuses sans fil ayant une rotation de 1200 – 1500 min-1\n\nDémontable à l’infini : Pour dévisser la liaison, il suffit de changer le sens de rotation de la visseuse.","Fabricant","http://www.lamello.com/fr/accueil/assemblage-du-bois/systeme-invis-mx.html"]
["Fixation Par Velcro","Elément","Assemblage","Tout type","Velcro","Velcro","France","Très diffusé","Démontage par traction sur chaque élément","Multiples applications envisageables (revêtements intérieurs murs et sols, éléments de second œuvre (main courante escalier, prise électriques, supports luminaires,…)). Ses qualités hygrophobes permettent également des utilisations en contact avec le milieu extérieur (terrasses, revêtement de toit, montants de menuiseries,...).\n\n Le système permet également de garantir une légère ventilation au niveau de l'assemblage, limitant ainsi l'apparition de moisissures. Cet avantage et également un inconvénient et proscrit son usage pour des assemblages traversants l'enveloppe du bâtiment.\n","Nobatek","http://www.velcro.fr//"]
["Fondations Vissables","Elément","Fondation","Tout type","Krinner","Métal","France","Diffusion limitée","Démontable par dévissage - Permet de laisser le terrain en état initial après déconstruction","Pieux conçus pour des structures légères : abris jardins, panneaux solaires, panneaux publicitaires,… Ils peuvent également être utilisés pour des constructions bois sur des bâtiments avec un nombre limité d'étages et sur des sols propices.","Fabricant","http://www.krinner.fr/"]
["Grille De Ventilation","Elément","Ventilation","Tout type","Gavo","Métal","France","Très diffusé","Fixation par vis","Les grilles de ventilation offrent un accès aisé aux conduites de ventilation, facilitant ainsi leur entretien.","Fabricant","http://www.gavo.net/fr/producten/"]
["Rails de maintien de bardage intérieur bois","Elément","Revêtement intérieur","Tout type","?","Métal","France","Très diffusé","Les planches de bois sont empilées les unes sur les autres sans éléments de jonction","Ces rails permettent une mise en place et un démontage rapide du revêtement intérieur. Les planches de bois étant séparés une intervention manuelle sans matériel lourd et possible. Ce type d'assemblage présente un avantage pratique certain mais un travail et nécessaire quand à son intégration esthétique.","Publication","DFD.pdf"]
["Manchons De repérage de Câbles","Elément","Electricité","Tout type","Legrand","PVC","France","Très diffusé","S'enroulent et se déroulent facilement autour du câble","Manchons permettant de repérer les câbles. Généralement fait avec du ruban adhésif. Le ruban adhésif est moins facilement démontable et non réutilisable.","Fabricant","http://www.legrand.fr/presse/les-nouveaux-manchons-cab-3-de-reperage-et-d-isolation-une-innovation-legrand_1150.html"]
["Parquet flottant En Liège","Elément","Revêtement de sol","Tout type","Alsacork","liège naturel","France","Très diffusé","Fixation par clipsage sans colle","Parquet  liège en pose flottante avec système de clipsage en médium.\nSous-couche en liège intégrée. Prêt à poser, sans colle.","Fabricant","http://www.alsacork.fr/boutique-online/catalog/62"]
["Pied De Poteau à âme métallique","Elément","Structure","Structures légères","Piveteau","Métal","France","Très diffusé","Fixation par vis ou boulonnage","Adapté aux structures légères. Mise en place manuelle.","Fabricant","http://www.piveteaubois.com/e-Sales/esa/default.jsp?mainpage=GalleryView.jsp&utm_medium=GammeBardageBois&%40where.ParentCategoryID=btc_bardages&utm_source=Piproduits"]
["Pied De Poteau métallique","Elément","Structure","Structures légères","Piveteau","Métal","France","Très diffusé","Fixation par vis ou boulonnage","Adapté aux structures légères. Mise en place manuelle.","Fabricant","http://www.piveteaubois.com/e-Sales/esa/default.jsp?mainpage=GalleryView.jsp&utm_medium=GammeBardageBois&%40where.ParentCategoryID=btc_bardages&utm_source=Piproduits"]
["Pied De Poteau métallique","Elément","Structure","Structures légères","Piveteau","Métal","France","Très diffusé","Fixation par vis ou boulonnage","Adapté aux structures légères. Mise en place manuelle.","Fabricant","http://www.piveteaubois.com/e-Sales/esa/default.jsp?mainpage=GalleryView.jsp&utm_medium=GammeBardageBois&%40where.ParentCategoryID=btc_bardages&utm_source=PIproduits"]
["Pied De Poteau métallique Réglable","Elément","Structure","Structures légères","Piveteau","Métal","France","Très diffusé","Fixation par vis ou boulonnage","Adapté aux structures légères. Mise en place manuelle.","Fabricant","http://www.piveteaubois.com/e-Sales/esa/default.jsp?mainpage=GalleryView.jsp&utm_medium=GammeBardageBois&%40where.ParentCategoryID=btc_bardages&utm_source=PIproduits"]
["Pied De Poteau métallique Vissable","Elément","Assemblage","Structures légères","Avenue du bois","Métal","France","Très diffusé","Le poteau est fixé par vis - La modification de la hauteur d'emprise peut faciliter le démontage sur site","Permet de fixer les pied de poteau sur des pas de vis. Cela autorise une adaptation de la hauteur de poteau, notamment en cas de défaut de fabrication. Il permet également de faciliter le démontage en éloignant l'élément fixé de l'assemblage supérieur. Cela apporte dans un même temps un aspect esthétique en ne faisant pas apparaître la zone de fixation sur les parties périphériques du profilé bois.","Revendeur","http://www.avenue-du-bois.fr/pied-de-poteau-hauteur-101.html"]
["Pieux Vissés","Elément","Fondation","Tout type","Technopieux","Métal","France","Très diffusé","Peut être dévissé","Le pieu vissé de marque « Techno Pieux » se présente comme une grande vis mise en œuvre dans le sol par une machine spécialisée, jusqu’à atteindre la capacité portante voulue. Dévissable, les Techno Pieux permettent de laisser le terrain en état initial après déconstruction.","Fabricant","http://www.technopieux.com/fr/produits/pieux-visses/"]
["Plafond Thermo fixé","Elément","Plafond","Tout type","Luxtend","Divers","Belgique","Très diffusé","Fixation par chauffage modifiable à volonté","Ce type de plafond étirable offre de larges opportunités d'intégration dans l'espace intérieur. Les montages et démontages doivent être réalisés par un professionnel qualifié en possession du matériel nécessaire. ","Fabricant","http://www.luxtend.fr/page-Demontable-42.html"]
["Plaque de Faux-Plafond","Elément","Plafond","Tout type","Knauf","Plâtre","France","Très diffusé","Disposé sans fixation sur profilés métallique de faux plafond","Système largement diffusé se retrouvant dans un grand nombre de bâtiments de bureaux. ","Fabricant","http://www.knauf-batiment.fr/chapitre/plafonds-demontables"]
["Plaque De Liège Naturel","Elément","Isolation intérieure","Tout type","Alsacork","liège naturel","France","Très diffusé","Fixation par vis","Ce type de plaque peut être assemblé par vissage sans altération irréversible de la plaque. Elles sont couramment utilisées afin de maintenir une isolation thermique et acoustique efficace dans des zones imposant des montages et démontages fréquents.","Fabricant","http://www.alsacork.fr/isolation_produits.php#naturel"]
["Platines et support Réglables pour Terrasse","Elément","Structure","Tout type","Piveteau","bois","France","Très diffusé","Fixation par vis","Permet de fixer une terrasse en laissant un écoulement d'air en sous face permettant une ventilation du vide sanitaire.","Fabricant","http://www.piveteaubois.com/e-Sales/esa/default.jsp?mainpage=GalleryView.jsp&utm_medium=GammeBardageBois&%40where.ParentCategoryID=btc_bardages&utm_source=PIproduits"]
["Plots Réglables pour Terrasse","Elément","Structure","Tout type","Piveteau","bois","France","Très diffusé","Dépose au sol sans fixation spécifique","Permet de fixer une terrasse en laissant un écoulement d'air en sous face permettant une ventilation du vide sanitaire.","Fabricant","http://www.piveteaubois.com/e-Sales/esa/default.jsp?mainpage=GalleryView.jsp&utm_medium=GammeBardageBois&%40where.ParentCategoryID=btc_bardages&utm_source=Piproduits"]
["Raccords hydrauliques flexibles","Elément","Canalisation","Tout type","?","PVC","France","Diffusion limitée","Tuyaux flexibles et éléments d'assemblage mécaniques (dévissables)","Ce type de canalisation est déjà largement diffusé et présente de multiples avantages, notamment un coût faible comparé à de la tuyauterie métallique.","Publication","Plumbing Systems.pdf"]
["Revêtement de sol adaptable (Land Peel Furniture)","Elément","Revêtement intérieur","Tout type","Felipe zanardi","Velcro","Japon","Diffusion limitée","Fixation par velcro","L'espace peut être adapté grâce à ce revêtement de sol partagé en modules dont l'organisation est adaptable à volonté grâce à un système de fixation par velcro.\n\nLa fixation au sol se fait par simple dépose du bloc, sans éléments de fixation supplémentaire.","Revendeur","http://www.fubiz.net/2010/04/01/land-peel-furniture/"]
["Revêtement de Sol Multicouches","Elément","Revêtement de sol","Tout type","CFP","PVC","France","Très diffusé","Pose sans colle avec assemblage par clips","Profil double verrou à serrage haute pression : garantie de tenue dans le temps. \n\nBlocage réversible : montage du parquet en avant et arrière\n\nAssemblage en bout à plat ou rotatif : rapidité et adaptation aux contraintes de pose\n\nClic rotatif à angle faible : montage plus facile, passage sous tuyauteries","Fabricant","http://www.cf-parquet.com/pro/index.php?option=com_content&view=article&id=16&Itemid=38%E2%8C%A9=fr"]
["Revêtement Mural Intérieur Bois","Elément","Revêtement intérieur","Tout type","?","Bois, Métal","France","Très diffusé","Fixation par encoches intégrées aux planches de revêtement","Système nécessitant des planches de bois conçus pour ce type d'assemblage. Comme montré dans l'illustration ci-contre, la fixation peut être réalisée par vis, clips ou rails.","Publication","DFD.pdf"]
["Revêtement Routier En Kit","Elément","Revêtement extérieur","Tout type","Non spécifié","Béton, asphalte","France","Très diffusé","Assemblage par joints secs","Chaussée urbaine \"démontable\" constituée d'alvéoles en béton pouvant être enlevées pour faciliter les interventions sur les réseaux souterrains.","Site spécialisé","http://www.lemoniteur.fr/131-etat-et-collectivites/article/actualite/523298-une-rue-en-kit-pour-faciliter-les-travaux-en-sous-sol"]
["Rondelle Thermo-Réactive","Elément","Assemblage","Tout type","?","Métal","France","Diffusion limitée","Démontage par chauffage de l'assemblage","L'ensemble est constitué d'une vis filetée et d'un anneau métallique thermo-réactif. L'assemblage est réalisé pour que la vis soit un tout petit peu plus étroite que le trou la recevant. L'anneau métallique est placé entre la tête de la vis et le trou de l'assemblage, comblant ainsi l'espace séparant les deux éléments. Lorsque l'on chauffe l'ensemble l'anneau métallique se dilate et libère la vis, pouvant ainsi passer à travers le trou et permettant de séparer facilement les deux éléments assemblés.","Publication","Barkkume_Disassembly_and_DfD"]
["Sabot De Solivage","Elément","Structure","Tout type","Piveteau","Métal","France","Très diffusé","Fixation mécanique par vis","Démontable mais le nombre de vis peut limiter le potentiel de démontage de l'élément.","Fabricant","http://www.piveteaubois.com/e-Sales/esa/default.jsp?mainpage=GalleryView.jsp&utm_medium=GammeBardageBois&%40where.ParentCategoryID=btc_bardages&utm_source=Piproduits"]
["Sol Pvc sans colle 25M²","Elément","Revêtement de sol","Tout type","Gerflor","PVC","France","Très diffusé","Pose facile sans colle sans éléments de fixation","Ce sol PVC absorbe les irrégularités et peut donc se poser sur tout type de sol y compris un ancien carrelage.Adapté à la rénovation. Pose facile sans colle (jusqu'à 25m²).","Fabricant","http://www.leroymerlin.fr/v3/p/produits/sol-pvc-aerotex-timeless-chene-gris-tarkett-4-m-e159189"]
["Système d'assemblage pour structure","Elément","Assemblage","Tout type","?","Métal","Inconnue","Très diffusé","Assemblage par élément indépendant facilitant la démontabilité de chaque éléments","Cette configuration permet un assemblage et un démontage simple des éléments constitutifs. Il permet d'envisager fortement une réutilisation des éléments assemblés sur d'autres bâtiments, le démontage ne détériorant pas ces éléments au niveau de leurs points d'assemblage. ","Publication","32 DEVELOPMENT OF INDUSTRIALIZED, FLEXIBLE AND DEMOUNTABLE MULTI-FAMILY BUILDING IFD COLLECTIVE HOUSING"]
["Système De Fixation de Faux-Plafond","Elément","Plafond","Tout type","Placo","Métal","France","Très diffusé","Fixation par dépose sans fixation spécifique","Technique largement répandue dans les bâtiments tertiaires. Les rails peuvent accueillir un grand nombre de types de plaques de faux plafonds et offrent une grande flexibilité concernant les dimensions.","Fabricant","www.placo.fr/content/download/122585/1534247/file/A03.001a.pdf‎"]
["Système de joint pour pavés","Elément","Assemblage","Tout type","?","Caoutchouc","USA","Recherche et Développement","Conçu pour faciliter la démontabilité","Au lieu de petits pavés usinés, il est possible de mettre en place des sections de pavés plus grandes pouvant être déplacés d'un seul bloc à l'aide de matériels lourds. Les joints secs sont couramment utilisés pour le revêtement de sol. Il semblerait intéressant de s'intéresser aux possibilités d'utilisation de ce type d'approche par exemple pour la construction de dalles sur terre-plein.","Publication","DFD.pdf"]
["Système de Mur de Rétention Modulaire","Elément","Structure","Tout type","/","Béton","USA","Diffusion limitée","Fixation par poids propre - type \"Lego\"","Modules pour murs de soutènement fixés par emboîtement des éléments en béton utilisant la gravité et les forces latérales naturels pour résister aux charges. Ce système modulaire préfabriqué est intrinsèquement flexible et s'adapte à une grande variété de contraintes propres au site de construction. L'absence des mortiers et des moyens de renfort supplémentaires rends les modules facilement démontables et réutilisables.","Publication","Design_for_Disassembly-guide"]
["Technologie De Fondations à Faible Impact (L.I.F.T.)","Elément","Fondation","Tout type","?","Béton","France","Diffusion limitée","Ces éléments peuvent être enlevés du sol par soulèvement","Les tiges métalliques permettent d'ancrer les plots bétons dans le sol par enfoncement (les plots sont percés de part en part). Les plots peuvent être retirés après avoir enlever ces tiges.","Publication","Design_for_Disassembly-guide"]
["Terrasse Pin Clipsée","Elément","Revêtement de sol","Tout type","Piveteau","bois","France","Très diffusé","Fixation par clips","Lames pour terrasses autorisant la fixation par clips.","Fabricant","http://www.piveteaubois.com/e-Sales/esa/default.jsp?mainpage=GalleryView.jsp&denied=yes&%40where.ParentCategoryID=b2c_Terrasses&utm_source=PIProduit&utm_campaign=LesProduitsTerrasses"]
["Maçonnerie sans joints post tendue","Système constructif","Structure","tout type","Kyushu University","Béton","Japon","Recherche et Développement","Pas de joints. Assemblages mécanique",null,"Kyushu University"]
["AGRIBOARD","système constructif","Assemblage","Tout type","Agriboard","Bois","USA","Marché","Eléments d'assemblage mécanique plancher / mur",null,"Agriboard"]
["Rail","Elément","Assemblage","tout type","Grad","plastic","France","Marché","Le clips permet le montage et le démontage des lames de terrasse ou de bardage",null,null,"http://www.architecturebois.fr/1er-clip-demontable-pour-lames-de-terrasses-et-de-bardage/"]

{"sheet":"Fiches","index":1,"n_rows":20,"n_cols":94,"rows_kept":20,"cut":false,"hidden":false,"merged":[]}
[]
[]
[null,"Classement (1 : OK, 2 : indirect, 3: éloigné)",1,1,1,1,1,1,1,1,1,1,1,1,null,2,1,2,1,1,1,1,1,2,1,1,1,1,1,1,1,1,1,1,1,1,1,1,1,1,1,1,1,1,1,1,2,2,1,1,1,1,1,1,1,1,1,1,1,1,1,1,1,1,1,null,null,1,1,1,1,1,1,1,1,null,null,1,2,1,1]
[null,"Commentaire",null,"Pas pour bâtiment d'habitation ou régis par le code de la construction, pour terrasses, abris, structures légères de loisir",null,null,"Assemblage non structurel","Pas démontable si utilisation de colle.\nAttention également avec les pièces d'assemblage en bois qui avec le temps travaillent et rendent l'assemblage indémontable\nPour la démontabilité, assemblage bout à bout intéressant mais sans pièce de bois de liaison","Possible pour bâtiments de grandes dimensions, industriel, tertiaire… Difficile pour le logement",null,"Pour structures lourdes. Peu adapté au logement individuel","?? De quoi il s'agit ?","Pour structures lourdes. Peu adapté au logement individuel","Pour structures lourdes. Peu adapté au logement individuel",null,null,null,null,null,null,"Aménagement extérieur",null,null,"Expliquer l'intérêt par rapport à un climatiseur normal. Déplaçable, pas de fixation, peut être disposé dans les pièces qui en ont besoin, optimisation",null,null,null,null,null,"A quoi ça sert ?",null,null,null,null,null,"Plutôt pour des bâtiments de grandes dimensions","Plutôt pour des bâtiments de grandes dimensions",null,null,null,null,null,null,"Détails sur la démontabilité réelle ? Démontabilité des panneaux entre eux ou des composants du plancher ?","A part si info supplémentaire, Pas pour tout type de bâtiment. Pour les structures non habitables, légères, terrasses...",null,"Faire commentaire. C'est le système qui est démontable ou intéressant car décentralisé ?","Je ne vois pas en quoi c'est particulièrement démontable",null,null,null,null,"Très diffusée ?",null,null,null,"Goulotte non ???",null,null,null,"Pour Structures légères. Pas de bâtiment d'habitation ou structure de toiture de terrasse",null,"Comment ça se démonte ?",null,null,null,"Lien source local.","Idée similaire au précédent. Démontage facile du produit car en Velcro ?",null,null,"Très courant. ",null,null,null,null,"intérêt éléments métalliques ?","doublon"]
[]
[null,"Produit","Assemblage Poteau / Toit","Ensemble plancher / revêtement / cloisons démontables 1","Ensemble plancher / revêtement / cloisons démontables 2","Liaison plancher / façade préfabriqués","Liaison plancher façades métallique","Assemblage de fenêtre par chevauchement","Liaison mur / toit","Liaison plancher / cloison ","Mur pour intégration prises électriques évolutives","Plancher Béton Préfabriqué Démontable : Bestcon 30","Plancher Béton Préfabriqué Démontable : Cd 20","Plancher Béton Préfabriqué Démontable : Matrixbow","Core Wall","Plancher creux","Connexions Indirects","Séparation des éléments au sein d'un plancher","Armoire Électrique","Assemblage autour d'une étoile à 4 côtés","Assemblage Bout À Bout","Assemblage Démontable pour structure métallique","Assemblage façades Centre Pompidou","Assemblage façades Yacht House","Assemblage poteau / toit structure métallique","Bloc Fixation Wc","Charpente Métallique","Cloison Démontable Sgc Clip-In","Cloisons Amovibles Et Démontables","Complexe constructif bois","Connexion nœud","Groupe Chauffage Autonome","Imposte De Porte Démontable","Joint Spline - Assemblage structure bois","Jonction Plancher / Murs Verticaux","Montant De Menuiserie Démontable","Montant De Menuiserie Démontable","Nœud d'assemblage rotulien de structure métallique","Panneaux De Plancher Métalliques","Plinthes pour passage de réseaux","Thermasteel","Truss Connexion - Assemblage toiture paroi","Faux plafond bois - fixation par clips","Revêtement murale aimanté","Faux plafond bois - fixation par crochets","Plinthe En Liège","\"Velcro\" Métallique","Adhésif Sur Panneaux De Bois Intérieur","Assemblage métallique simplifié","Assemblage par glissement","Assemblage triangulaire","Bâche De Toit Simple et Double Peau","Boite de réservation","Brise-soleils","Calles Fixation Bardage","Chaussette isolante pour Éléments De Tuyauterie","Clips Pour Revêtements de sol","Clips Sur Panneaux De Bois Intérieur","Clous À Deux Têtes","Dalle Autoporteuse Terrasse Préassemblé Pin","Elément d'encrage vissable","Fixation Invis","Fixation Par Velcro","Fondations Vissables","Rails de maintien de bardage intérieur bois","Manchons De repérage de Câbles","Pied De Poteau métallique Vissable","Pieux Vissés","Plafond Thermo fixé","Plaque de Faux-Plafond","Platines et support Réglables pour Terrasse","Plots Réglables pour Terrasse","Raccords hydrauliques flexibles","Revêtement de sol adaptable (Land Peel Furniture)","Revêtement Routier En Kit","Rondelle Thermo-Réactive","Sabot De Solivage","Sol Pvc sans colle 25M²","Système d'assemblage pour structure","Système De Fixation de Faux-Plafond","Système de joint pour pavés","Système de Mur de Rétention Modulaire","Technologie De Fondations à Faible Impact (L.I.F.T.)","Terrasse Pin Clipsée","Maçonnerie sans joints post tendue","AGRIBOARD","Rail","Plancher","Bolted Column Connection ","REDUCE","Connecteurs KNAPP (RICON - FASCO)","HALFEN","Cassette Longitude","Façade F4"]
[1,"Type de solution","Système constructif","Système constructif","Système constructif","Système constructif","Système constructif","Système constructif","Système constructif","Système constructif","Système constructif","Système constructif","Système constructif","Système constructif","Système constructif","Système constructif","Mode constructif","Mode constructif","Complexe","Complexe","Complexe","Complexe","Complexe","Complexe","Complexe","Complexe","Complexe","Complexe","Complexe","Complexe","Complexe","Complexe","Complexe","Complexe","Complexe","Complexe","Complexe","Complexe","Complexe","Complexe","Complexe","Complexe","Complexe","Complexe","Complexe","Complexe","Elément","Elément","Elément","Elément","Elément","Elément","Elément","Elément","Elément","Elément","Elément","Elément","Elément","Elément","Elément","Elément","Elément","Elément","Elément","Elément","Elément","Elément","Elément","Elément","Elément","Elément","Elément","Elément","Elément","Elément","Elément","Elément","Elément","Elément","Elément","Elément","Elément","Elément","Système constructif","système constructif","Elément","Système constructif","Elément","Système constructif","Elément","Elément","Element","Système constructif"]
[2,"Classe produit","Assemblage","Assemblage","Assemblage","Assemblage","Assemblage","Assemblage","Assemblage","Structure","Assemblage","Assemblage","Assemblage","Structure","Structure","Structure","Assemblage","Structure","Electricité","Assemblage","Charpente","Assemblage","Assemblage","Assemblage","Assemblage","Sanitaires","Structure","Menuiserie intérieure","Cloisonnement intérieur","Structure","Assemblage","Chauffage","Menuiserie intérieure","Assemblage","Structure","Menuiserie extérieure","Menuiserie extérieure","Assemblage","Structure","Accessoire","Structure","Assemblage","Plafond","Revêtement intérieur","Plafond","Revêtement intérieur","Assemblage","Revêtement intérieur","Assemblage","Assemblage","Assemblage","Couverture","Accessoire","Protection solaire","Assemblage","Canalisation","Assemblage","Revêtement intérieur","Assemblage","Revêtement de sol","Fondation","Assemblage","Assemblage","Fondation","Revêtement intérieur","Electricité","Assemblage","Fondation","Plafond","Plafond","Structure","Structure","Canalisation","Revêtement intérieur","Revêtement extérieur","Assemblage","Structure","Revêtement de sol","Assemblage","Plafond","Assemblage","Structure","Fondation","Revêtement de sol","Structure","Assemblage","Assemblage","Structure","Assemblage","Assemblage","Assemblages","Assemblage","Bardage","Paroi"]
[3,"Type de bâtiments visés","Tout type","Sauf habitat individuel","Sauf habitat individuel","Tout type","Tout type","Tout type","Tout type","Tout type","Tout type","Tout type","Tout type","Tout type","Tout type","Tout type","Tout type","Tout type","Tout type","Tout type","Tout type","Industriel","Sauf habitat individuel","Tout type","Industriel","Tout type","Industriel","Tout type","Tout type","Habitat individuel","Tout type","Industriel","Tout type","Tout type","Tout type","Tout type","Tout type","Tout type","Tout type","Tout type","Tout type","Tout type","Tout type","Tout type","Tout type","Tout type","Tout type","Tout type","Sauf habitat individuel","Sauf habitat individuel","Sauf habitat individuel","Industriel","Tout type","Tout type","Tout type","Industriel","Tout type","Tout type","Tout type","Tout type","Structures légères","Tout type","Tout type","Tout type","Tout type","Tout type","Structures légères","Tout type","Tout type","Tout type","Tout type","Tout type","Tout type","Tout type","Tout type","Tout type","Tout type","Tout type","Tout type","Tout type","Tout type","Tout type","Tout type","Tout type","tout type","Tout type","tout type","Tout type","Tout type","Tout type","Tout type","Tout type","Tout type","Tout type "]
[4,"Fabricant","?","Etat Canadien","Etat Canadien","Etat Canadien","Etat Canadien","?","?","?","?","Netherland","Netherland","Netherland","Bensonwood","Bensonwood","?","?","Legrand","?","Non spécifié","Universidad Politécnica de Cartagena","?","?","spaciotempo","ErgoWall","Galco (France Métal)","Dispano","ABCD International","?","?","Losberger","Malerba","Bensonwood","Gipen","?","?","Alexis Rochas","?","?","Thermasteel","?","Hunter Douglas","W-all Ventures","Arotcharen","Alsacork","Metaklett","?","?","Quicon","Emilio Perez Piñero","Omega Structures","Uniboite","Uniform","Piveteau","Carbone +","Piveteau","?","?","Piveteau","Fixtoo","Lamello","Velcro","Krinner","?","Legrand","Avenue du bois","Technopieux","Luxtend","Knauf","Piveteau","Piveteau","?","Felipe zanardi","Non spécifié","?","Piveteau","Gerflor","?","Placo","?","/","?","Piveteau","Kyushu University","Agriboard","Grad","?","PEIKKO",null,"KNAPP","HALFEN","Laude","ISOVER"]
[5,"Matériaux","Divers","Divers","Divers","Divers","Divers","Divers","Divers","Divers","PVC","Béton, Métal","Béton, Métal","Béton, Métal","Bois, Divers","Bois, Divers","Divers","Divers","Divers","Métal","Bois","Métal","Métal","Métal","Métal","Divers","Métal","Métal","Vitrage, aluminium, bois, plâtre","Divers","Bois","Divers","Vitrage, aluminium, bois, PVC","Bois","Bois","Métal","Métal","Métal / résine plastique","Métal","PVC","Bois","Métal","Bois","Divers","Divers","liège naturel","Métal","Bandes adhésives","Métal","Métal","Métal","Polycarbonate","PVC","Bois, Métal","Métal","non précisé","Métal","Métal","Métal","bois","Métal","Divers","Velcro","Métal","Métal","PVC","Métal","Métal","Divers","Plâtre","bois","bois","PVC","Velcro","Béton, asphalte","Métal","Métal","PVC","Métal","Métal","Caoutchouc","Béton","Béton","bois","Béton","Bois","plastic","Béton, métal","Métal","Métal, béton","Métal","Métal","Métal","Métal, laine minérale"]
[6,"Disponibilité Pays","Inconnue","France","France","France","France","Inconnue","Inconnue","Inconnue","Inconnue","Pays-Bas","Pays-Bas","Pays-Bas","USA, UK, Japon, Canada","USA, UK, Japon, Canada","France","Inconnue","France","Inconnue","France","Espagne","Inconnue","Inconnue","France","Belgique","France","France","France","USA","Inconnue","France","France","USA, UK, Japon, Canada","France","USA","USA","USA","France","Inconnue","USA","USA","France","France","France","France","Allemagne","France","UK","UK","Inconnue","France","France","France","France","France","France","France","France","France","France","France","France","France","France","France","France","France","Belgique","France","France","France","France","Japon","France","France","France","France","Inconnue","France","USA","USA","France","France","Japon","USA","France","France","Monde",null,"Monde","Monde","France","France"]
[7,"Stade d'évolution","Diffusion limitée","Recherche et Développement","Recherche et Développement","Recherche et Développement","Recherche et Développement","Diffusion limitée","Diffusion limitée","Diffusion limitée","Diffusion limitée","Diffusion limitée","Diffusion limitée","Diffusion limitée","Diffusion limitée","Diffusion limitée","Très diffusé","Très diffusé","Très diffusé","Diffusion limitée","Très diffusé","Diffusion limitée","Diffusion limitée","Diffusion limitée","Très diffusé","Très diffusé","Très diffusé","Diffusion limitée","Très diffusé","Diffusion limitée","Très diffusé","Très diffusé","Très diffusé","Diffusion limitée","Très diffusé","Diffusion limitée","Diffusion limitée","Recherche et Développement","Très diffusé","Recherche et Développement","Diffusion limitée","Diffusion limitée","Très diffusé","Diffusion limitée","Diffusion limitée","Très diffusé","Diffusion limitée","Diffusion limitée","Diffusion limitée","Diffusion limitée","Recherche et Développement","Très diffusé","Diffusion limitée","Très diffusé","Très diffusé","Très diffusé","Très diffusé","Diffusion limitée","Très diffusé","Très diffusé","Très diffusé","Diffusion limitée","Très diffusé","Diffusion limitée","Très diffusé","Très diffusé","Très diffusé","Très diffusé","Très diffusé","Très diffusé","Très diffusé","Très diffusé","Diffusion limitée","Diffusion limitée","Très diffusé","Diffusion limitée","Très diffusé","Très diffusé","Très diffusé","Très diffusé","Recherche et Développement","Diffusion limitée","Diffusion limitée","Très diffusé","Recherche et Développement","Marché","Marché","Développement","Marché","Développement","Marché","Marché","Marché","Marché"]
[8,"En quoi est-ce démontable ?","Fixation mécanique par tige filetée","Assemblage par fixation mécanique","Assemblage par fixation mécanique","Assemblage par fixation mécanique","Assemblage par fixation mécanique, boulonnage","Assemblage par fixation mécanique","Le retrait de la languette métallique permet de séparer les éléments","Voir le descriptif ci-dessous","Les prises électriques sont placés dans un rail métallique et ainsi désolidarisées du mur","Séparation des dalles de plancher + fixation par boulonnage","Les dalles peuvent être démontées simplement en enlevant le poteau supérieur","Fixation mécanique du poteau inférieur au poteau supérieur via les éléments de planchers","Conçu pour faciliter la démontabilité des éléments constitutifs","Conçu pour faciliter la démontabilité","Principe de construction favorisant la déconstruction","La séparation des éléments dans un plancher autorise leur démontabilité","cadre amovible et des flancs démontables individuellement","Fixation par glissement autour d'un élément fixe","Assemblage minimisant le recours au métal","démontabilité comme propriété intrinsèque, fixations mécaniques par tiges filetées et boulons","Éléments mécaniques emboitables","Éléments mécaniques emboitables et boulonnables","La jonction est réalisée par une barre métallique démontable","Conçu pour une démontabilité facilitée","Elément d'assemblage en filière sèche dévissable","Les panneaux de verre sont clipsés l’un à l’autre grâce à des profilés de raccords minces et transparents","démontabilité comme propriété intrinsèque","Fixation sur rails incorporés dans le plancher","Pas de joint ciment ni collage - Fixation mécanique","Groupe désolidarisé du bâtiment avec accès par l'extérieur","Fixation par verrou simple en partie basse","Conçu pour faciliter la démontabilité","La jonction est réalisée par des platines démontables","Conçu pour faciliter la démontabilité","Conçu pour faciliter la démontabilité","Démontable à volonté - Eléments fixés entre eux mécaniquement","Fixation mécanique en filière sèche","Le support est fixé par vis au mur et la plainte est simplement démontable, autorisant une intervention simple sur les câbles","Conçu pour favoriser la démontabilité","Conçu pour faciliter la démontabilité","Fixation par clips","Fixation par aimants fixés sur rails","les dalles de bois sont assemblés à des câbles de maintien suspendus au plafond par des crochets","Fixation par vissage sans colle du support et intégration simple de la plinthe","Permet de désassembler par simple séparation des deux éléments de fixation","Capacité adhésive adpatée à l'utilisation","Les poutres disposent d'une platine venant se reposer sur une tige métallique - Même action possible lors de l'action du démontage","Les poutres Métal sont glissés sur tiges boulonnées et reposent sur une platine adaptée avec trous oblongs - Même action possible lors de l'action du démontage","Permet de réaliser un assemblage triangulaire à l'aide d'un système tige filetée écrou","Utilisé dans le cadre de constructions temporaires démontables","Facilite la démontabilité et le remplacement des câbles emprisonnés dans le béton","Système innovant d'accroche des lames de bois permettant la démontabilité","Permet de ne pas altérer les lames de bardages, restant facilement démontables","Chaussette isolante adaptée à l'élément à isoler- Fixation par sangles et velcro, réutilisable sur l'élément après chaque entretien","Fixation sans colle","Les clips permettent de démonter facilement les panneaux de bois","La deuxième tête fait office de levier pour démontage","Ne nécessite aucun mode de fixation - Pas de désassemblage de chaque composant","Facilite démontabilité","Fixation par électro-aimant réversible","Démontage par traction sur chaque élément","Démontable par dévissage - Permet de laisser le terrain en état initial après déconstruction","Les planches de bois sont empilées les unes sur les autres sans éléments de jonction","S'enroulent et se déroulent facilement autour du câble","Le poteau est fixé par vis - La modification de la hauteur d'emprise peut faciliter le démontage sur site","Peut être dévissé","Fixation par chauffage modifiable à volonté","Disposé sans fixation sur profilés métallique de faux plafond","Fixation par vis","Dépose au sol sans fixation spécifique","Tuyaux flexibles et éléments d'assemblage mécaniques (dévissables)","Fixation par velcro","Assemblage par joints secs","Démontage par chauffage de l'assemblage","Fixation mécanique par vis","Pose facile sans colle sans éléments de fixation","Assemblage par élément indépendant facilitant la démontabilité de chaque éléments","Fixation par dépose sans fixation spécifique","Conçu pour faciliter la démontabilité","Fixation par poids propre - type \"Lego\"","Ces éléments peuvent être enlevés du sol par soulèvement","Fixation par clips","Pas de joints. Assemblages mécanique","Eléments d'assemblage mécanique plancher / mur","Le clips permet le montage et le démontage des lames de terrasse ou de bardage","Le système de clavetage particulier peut être démoli, libérant ainsi les dalles bétons préfabriquées des profilé métalliques de structure du plancher","Assemblage d'éléments préfabriqués béton par platinnes métalliques et boulonnage.","Pas de clavetage. Assemblage mécanique dévissable entre les dalles de planchers et les profilés métalliques support","Connecteurs à assemblage sec par emboitement","Platines métalliques de fixation de profilés et panneaux en façade. Fixation par boulonnage","Cassettes métalliques fixées par emboitement et démontables indépendament les unes des autres","Les éléments sont assemblés mécaniquement"]
[9,"Descriptif","La tige filetée a une durée de vie importante et permet de ne pas mettre en péril la structure assemblée en nécessitant un remplacement de l'élément assembleur.","Voir schéma :\nStructure de plancher en dalles béton précontraintes sur profilés métalliques, plancher bois sur plots, cloisons démontables, réseaux passés entre le revêtement sur plot et la structure du plancher.","Voir schéma :\nPlancher en dalle béton sur bac métallique nervuré, posé sur structure métallique en profilés à âme évidée, faux plafond sous suspentes, passage des réseaux en faux plafond.","Voir schéma :\nDétail De section intérieure avec plancher en béton pré contraint fixé sur profilé métallique, panneaux de façade préfabriqués\nTrappe d'accès à l'élément d'assemblage plancher / panneau de façade supérieur.","Voir schéma :\nDétail de section extérieure en structure métallique avec mur rideau vitré en revêtement extérieur.","Les détails ci-dessous présentent la différence entre une configuration d'assemblage n'autorisant pas le démontage d'un vitrage (en haut à gauche) et une proposition de modification le permettant. Une modification de la géométrie de la jonction supérieure du vitrage a été adaptée en ne présentant qu'une butée en lieu et place d'une accroche par frottement a l'élément support en contact supérieur. La géométrie de ce dernier est également adaptée à cette nouvelle configuration.","L'illustration ci-contre décrit les différentes étapes du démontage des éléments. C'est un schéma de principe à adapter au cas étudié.","Les aspects ayant l'impact principal sur le potentiel de démontabilité de cette configuration sont les suivants :\n- Haut niveau d'indépendance entre les groupes assemblés ayant des fonctionnalités et des durées de vie différentes.\n- Utilisation de connexions démontables entre les groupes assemblés : support, mur de séparation, électricité et porte\n- Utilisation d'intermédiaires entre le mur de séparation et les installations électriques, ainsi qu'entre le mur de séparation et le plancher\n- Utilisation de pièces avec des fonctionnalités d'auto-verrouillage intégrés","Ce type de rail peut se mettre en place dans différentes configurations, verticalement ou horizontalement. Ils permettent une maintenance et un remplacement des prises et du réseau électrique aisé.","Un élément métallique divise l'appui du plancher en 4 parties égales. Les dalles de plancher sont insérées dans chacune des cavités puis fixés par des vis sur les poteaux hauts et bas.","Les dalles de plancher conçues à cet effet sont insérées dans des barrettes métalliques ancrées dans les poteaux. Les dalles sont fixées entres les poteaux hauts et bas. Les éléments de fixation on une longueur égale à la moitié de l'épaisseur des dalles.","Les dalles de plancher sont fixées entre elles par des tiges filetées les traversant de par en par et venant se fixer sur des plaquettes métalliques incorporées dans les poteaux supérieurs et inférieurs.","Ce mur est conçu pour préserver l'indépendance entre les différents éléments le composant. On peut ainsi démonter indépendamment chaque élément et les modifier sans engager la pérennité de l'élément structurel.","Ce plancher est conçu pour préserver l'indépendance entre les différents éléments le composant. On peut ainsi démonter indépendamment chaque élément et les modifier sans engager la pérennité de l'élément structurel.","Les connecteurs directs s'emboîtent ou se chevauchent avec des composants, ce qui peut rendre difficile la déconstruction en raison du processus d'assemblage général. Les connecteurs indirects sont habituellement plus faciles à déconstruire de par leur interchangeabilité et l'indépendance des composants. Les connecteurs colmatés tels que des connecteurs collés ou soudés peuvent être pratiquement impossible à déconstruire, à moins que la charge de fixation soit très douce, comme pour le mortier de chaux. ","Ce mode constructif peut être adapté à différents types de plancher. Les schéma ci-contre décrivent plusieurs types de configurations. Cela permet de désolidariser les différents éléments considérés, leur donnant un fort potentiel de démontabilité et permettre ainsi leur remplacement sans engager la pérennité des ouvrages structurels.","Ce type d'armoire peut être déplacé en cas de modification de l'organisation des locaux techniques. La flexibilité des éléments facilite également les opérations de maintenance.","Ce type de fixation permet d'envisager diverses applications concernant l'assemblage de bâtiments par groupes d'éléments.\n\nAssemblage non structurel. ","Par colle, clous ou vis, ce type d'assemblage permet d'éviter au maximum l'utilisation de métal dans l'acte de construire.\nPas démontable si utilisation de colle.\nAttention également avec les pièces d'assemblage en bois qui avec le temps travaillent et rendent l'assemblage indémontable.\nPour la démontabilité, assemblage bout à bout intéressant mais sans pièce de bois de liaison.","Assemblage développé par l'université de Carthagène dans le cadre d'un projet destiné à l'élaboration d'un type d'assemblage facilement démontable. L'élément intermédiaire représenté en vert et orange sur le schéma ci-dessous permet de désolidariser les deux éléments structurels et ainsi de faciliter leur démontage.","Possible pour bâtiments de grandes dimensions, industriel, tertiaire… Difficile pour le logement.","La croix métallique en partie centrale permet de désolidariser les éléments assemblés.","Assemblage destiné aux constructions démontables métalliques. Ce système permet de minimiser le temps de manipulation par les ouvriers en hauteur.","Ce bloc WC intègre l'ensemble des éléments d'une installation sanitaire classique. Il est conçu pour être entièrement démontable. Il permet d'améliorer l'agrément intérieur tout en facilitant la démontabilité et l'adaptabilité de l'espace intérieur.","D'une grande solidité (les pièces galvanisées sont à l'abri de la rouille), ces bâtiments métalliques sont des construction facilement réalisables. \nLes charpentes métalliques sont adaptées à de multiples utilisations, en tant que sites de production, ateliers, locaux techniques associés à des mairies, centres de contrôle technique, etc.","Ce système comporte une rainure, façonnée sur la tranche verticale des vitrages. Grâce à des profilés de raccords minces et transparents, les panneaux de verre sont clipsés l’un à l’autre.\n\nLa jonction des vitrages bord à bord est prévue pour les angles droits ou les raccords en T des cloisons de refends sur les circulations.","Il existe un nombre important de types de cloisons amovibles offrant des modes de fixations variées. Se tourner vers les fabricants pour des détails sur ces techniques.","Les blocs SIP (Structural Insulated Panels) simplifient la connexion et l'assemblage entre le mur vertical et et le toit.\nIl combine le revêtement de toit, l'isolation et éventuellement la finition de plafond en un seul composant.\nL'intérêt du design de cet élément est qu'il peut être facilement démonté et utilisé comme un élément complet pour un autre bâtiment. La combinaison de différentes fonctionnalités comme élément structurel, isolant et revêtements intérieurs et extérieurs permet d'envisager une utilisation variée non destiné à être directement envoyé en décharge après l'utilisation. Cette configuration a cependant l'inconvénient de présenter des difficultés de recyclage compte-tenu de cette combinaison d'éléments hétérogènes.","Les éléments structurels sont empilés les uns sur les autres, avec ou sans éléments de jonction. ","Ce groupe chauffage autonome présente l'avantage d'être désolidarisé du bâtiment. La facilité de maintenance, et le manque d'encombrement intérieur en sont les principaux atouts. A noter cependant que ce type d'installation occasionne des pertes importantes dues à l'écart de température entre l'air chauffé et l'environnement extérieur.\n\nIl est destiné à une utilisation sur des bâtiments permanents et est entièrement démontable.","Ce système d'imposte est simple à monter et s'adapte à différents types de menuiseries. L'imposte est fixée par un verrou simple en partie basse la calant dans la rainure en partie supérieure.","Le mode d'assemblage mécanique et simple est intéressant, cependant l'expérience montre qu'avec le temps les structures bois ont tendance à se déformer légèrement et à bloquer les éléments d'assemblage.\nUne tige de liaison métallique dévissable serait plus pertinente en vu d'une meilleur démontabilité à long terme.","Le type de jonction présenté dans les illustrations ci-jointes n'est qu'un exemple parmi d'autres des jonctions planchers / murs verticaux réalisées par platines démontables.","La finition extérieure est similaire à une finition traditionnelle afin de garantir l'étanchéité à l'eau. La partie intérieure est garnie avec un chambranle de bois pouvant être facilement enlevé, ce qui permet à la fenêtre d'être retirée de l'intérieur. ","Une languette en aluminium est placé en extérieur. Elle permet une connexion étanche à l'eau entre la vitre et le revêtement, et permet à la fenêtre d'être facilement démontée.","La structure de OCTA.BOT est composée de raccords universels abritant huit rotules permettant à chaque entretoise de tourner librement autour d'un point de travail commun. Le joint à rotule permet une adaptation de la structure aux mouvements. La combinaison de longueurs d'entretoises détermine automatiquement les angles complexes de l'ensemble et rend une liaison rigide autobloquante. Tous les raccords de OCTA.BOT sont réutilisables, permettant à la structure un démantèlement et une reconfiguration aisée.","- Les panneaux de plancher sont creux pour permettre le passage des réseaux techniques, et ainsi faciliter leur démontage\n- Elément monobloc reposant sur des profilés en périphérie et fixation mécanique en filière sèche\n- Démontabilité du plancher et des éléments le traversant facilitée","Différentes configurations sont possibles et peuvent s'appliquer à différents types de réseaux pour des utilisations variées (réseau électrique, fibre optique, chemin de câble pour utilisations spécifique comme les studios de musique,…).","Le système Thermasteel est composé de panneaux indépendants. Ces derniers intègrent un isolant rigide lié à une section en Métal légère par fixation sous haute chaleur et pression. Aucun adhésif n'est utilisé dans les composants ou les assemblages. Toutes les liaisons sont réalisées par des vis auto-taraudeuses. Comme toutes les connexions utilisées pour assembler le système Thermasteel sont simples et \" sèches \", le système se prête très facilement au démontage.\nUn deuxième avantage de ce système est sa résistance à la moisissure. ","Ce type d'assemblage permet de limiter le nombre de vis utilisées au sein de l'assemblage. La consommation de matière est ainsi réduite et permet de réduire le temps nécessaire au démontage de l'assemblage.","Ce système est constitué de panneaux à base de lames de bois massif liées les unes aux autres par des tourillons aluminium. L'utilisation d'un système d'assemblage mâle/femelle des tourillons garantit un bon alignement des panneaux. Les panneaux démontables sont fixés à des porteurs en métal au moyen d'un clip.","Ce système autorise une modification des revêtements muraux au gré des envies des occupants. Reste pour l'instant à un prix élevé et donc difficilement accessible à un large public.","Ce type de faux plafond a été utilisé dans le projet du siège social de Quicksilver conçu par l'architecte Patrick Arotcharen. \nLa particularité de ce système et l'accroche par simples crochets à l'élément support.\nCela facilite les opérations de maintenance et l'accès aux gaines techniques.","Fourni avec l'attache en plastique, à visser sur le mur. La plinthe s'insère toute seule dans l'attache, et permet le passage de réseaux électriques.","Cette technologie résiste à des températures jusqu'à 800 °C et permet de soutenir des charges jusqu'à 35 tonnes/m² si les charges sont appliquées parallèlement au système d'accroche. \n\nSon application est aujourd'hui limitée à l'industrie et à l'automobile. Ses propriétés intrinsèques permettent toutefois d'envisager raisonnablement des applications à grande échelle dans le domaine de la construction.","L'adhésif doit être choisie méticuleusement pour que l'intensité du collage permette à la fois de fixer correctement les panneaux de bois, tout en autorisant leur décollage sans trop de difficultés.","Assemblage simplifié. Nécessite une platine adaptée prévue en usine.\nAdapté à des planchers fins et légers.","Quicon system.\n\nIl existe également les systèmes MXB-5, Moducon-2000 et SMT systems (aucunes informations supplémentaires n'ont été trouvées).","Est adapté à une typologie particulière d'assemblage nécessitant une fixation triangulaire.","Ce type de revêtement de toit est largement utilisé dans des constructions éphémères démontables.","Permet un accès aux fourreaux de câbles emprisonnés dans une dalle béton. Evite les déchets liés à l'utilisation de matière (souvent PSE) comme coffrage perdu.","Les lames en bois sont montées sur des montants aluminium. Un système à vis breveté permet un démontage aisé des lames de bois. Les montants en aluminium sont également démontables (fixation mécanique par vis)."," Nécessite des lames de bardage adaptées.","- Absence de pont thermique\n- Confection sur mesure\n- Légèreté et tenue en forme\n- Longévité\n- Montage et démontage faciles\n- Amélioration des conditions de travail\n- Ininflammabilité\n- Pas de dégagement de fumées toxiques lors d'incendies","Il existe plusieurs types de clips adaptés à différents revêtements de sol. Ce type de système est en application sur des planchers bois, lambris ou sols en PVC.","Ce type de clips permet une fixation des panneaux de bois sans altérer le mur support.","Les clous à \"deux têtes\" présentent l'avantage de faciliter le démontage des éléments fixés. Ils présentent la même résistance que les clous normaux et ne remettent donc pas en questions la solidité de l'assemblage concerné. Les clous sont enfoncés jusqu'à la première tête, laissant ainsi la seconde en surface. Il suffit ensuite d'utiliser la mâchoire de l'extrémité opposée d'un marteau pour les enlever. Ils doivent cependant être utilisés pour des assemblages masqués ou difficilement accessibles, pour éviter les risques de blessures ou de déchirement de vêtements.","L'absence d'éléments intermédiaires de fixation au sol permet une indépendance de ces éléments, autorisant une adaptabilité des espaces extérieurs et une démontabilité aisée.","Adapté aux structures légères. Encrage manuel.","Electro-aimant invisible et démontable : Le champ magnétique en rotation du MiniMag Mx entraîne la liaison, comme une roue dentée entraîne une autre.\nLa tige filetée de la liaison se visse dans le boulon, sans contact direct et uniquement actionnée par le champ magnétique.\n\nUtilisation avec visseuse sans fil : Le mécanisme d’entrainement magnétique MiniMag Mx s’adapte sur toutes les visseuses sans fil ayant une rotation de 1200 – 1500 min-1\n\nDémontable à l’infini : Pour dévisser la liaison, il suffit de changer le sens de rotation de la visseuse.","Multiples applications envisageables (revêtements intérieurs murs et sols, éléments de second œuvre (main courante escalier, prise électriques, supports luminaires,…)). Ses qualités hygrophobes permettent également des utilisations en contact avec le milieu extérieur (terrasses, revêtement de toit, montants de menuiseries,...).\n\n Le système permet également de garantir une légère ventilation au niveau de l'assemblage, limitant ainsi l'apparition de moisissures. Cet avantage et également un inconvénient et proscrit son usage pour des assemblages traversants l'enveloppe du bâtiment.\n","Pieux conçus pour des structures légères : abris jardins, panneaux solaires, panneaux publicitaires,… Ils peuvent également être utilisés pour des constructions bois sur des bâtiments avec un nombre limité d'étages et sur des sols propices.","Ces rails permettent une mise en place et un démontage rapide du revêtement intérieur. Les planches de bois étant séparés une intervention manuelle sans matériel lourd et possible. Ce type d'assemblage présente un avantage pratique certain mais un travail et nécessaire quand à son intégration esthétique.","Manchons permettant de repérer les câbles. Généralement fait avec du ruban adhésif. Le ruban adhésif est moins facilement démontable et non réutilisable.","Permet de fixer les pied de poteau sur des pas de vis. Cela autorise une adaptation de la hauteur de poteau, notamment en cas de défaut de fabrication. Il permet également de faciliter le démontage en éloignant l'élément fixé de l'assemblage supérieur. Cela apporte dans un même temps un aspect esthétique en ne faisant pas apparaître la zone de fixation sur les parties périphériques du profilé bois.","Le pieu vissé de marque « Techno Pieux » se présente comme une grande vis mise en œuvre dans le sol par une machine spécialisée, jusqu’à atteindre la capacité portante voulue. Dévissable, les Techno Pieux permettent de laisser le terrain en état initial après déconstruction.","Ce type de plafond étirable offre de larges opportunités d'intégration dans l'espace intérieur. Les montages et démontages doivent être réalisés par un professionnel qualifié en possession du matériel nécessaire. ","Système largement diffusé se retrouvant dans un grand nombre de bâtiments de bureaux. ","Permet de fixer une terrasse en laissant un écoulement d'air en sous face permettant une ventilation du vide sanitaire.","Permet de fixer une terrasse en laissant un écoulement d'air en sous face permettant une ventilation du vide sanitaire.","Ce type de canalisation est déjà largement diffusé et présente de multiples avantages, notamment un coût faible comparé à de la tuyauterie métallique.","L'espace peut être adapté grâce à ce revêtement de sol partagé en modules dont l'organisation est adaptable à volonté grâce à un système de fixation par velcro.\n\nLa fixation au sol se fait par simple dépose du bloc, sans éléments de fixation supplémentaire.","Chaussée urbaine \"démontable\" constituée d'alvéoles en béton pouvant être enlevées pour faciliter les interventions sur les réseaux souterrains.","L'ensemble est constitué d'une vis filetée et d'un anneau métallique thermo-réactif. L'assemblage est réalisé pour que la vis soit un tout petit peu plus étroite que le trou la recevant. L'anneau métallique est placé entre la tête de la vis et le trou de l'assemblage, comblant ainsi l'espace séparant les deux éléments. Lorsque l'on chauffe l'ensemble l'anneau métallique se dilate et libère la vis, pouvant ainsi passer à travers le trou et permettant de séparer facilement les deux éléments assemblés.","Démontable mais le nombre de vis peut limiter le potentiel de démontage de l'élément.","Ce sol PVC absorbe les irrégularités et peut donc se poser sur tout type de sol y compris un ancien carrelage.Adapté à la rénovation. Pose facile sans colle (jusqu'à 25m²).","Cette configuration permet un assemblage et un démontage simple des éléments constitutifs. Il permet d'envisager fortement une réutilisation des éléments assemblés sur d'autres bâtiments, le démontage ne détériorant pas ces éléments au niveau de leurs points d'assemblage. ","Technique largement répandue dans les bâtiments tertiaires. Les rails peuvent accueillir un grand nombre de types de plaques de faux plafonds et offrent une grande flexibilité concernant les dimensions.","Au lieu de petits pavés usinés, il est possible de mettre en place des sections de pavés plus grandes pouvant être déplacés d'un seul bloc à l'aide de matériels lourds. Les joints secs sont couramment utilisés pour le revêtement de sol. Il semblerait intéressant de s'intéresser aux possibilités d'utilisation de ce type d'approche par exemple pour la construction de dalles sur terre-plein.","Modules pour murs de soutènement fixés par emboîtement des éléments en béton utilisant la gravité et les forces latérales naturels pour résister aux charges. Ce système modulaire préfabriqué est intrinsèquement flexible et s'adapte à une grande variété de contraintes propres au site de construction. L'absence des mortiers et des moyens de renfort supplémentaires rends les modules facilement démontables et réutilisables.","Les tiges métalliques permettent d'ancrer les plots bétons dans le sol par enfoncement (les plots sont percés de part en part). Les plots peuvent être retirés après avoir enlever ces tiges.","Lames pour terrasses autorisant la fixation par clips.",null,null,null,"Système de plancher mixte démontable métal béton comportant des profilés métalliques structurels et dalles de plancher béton préfabriquées. Les dalles sont liées structurellement aux profilés métalliques par clavetages pouvant être détruits pour séparation des différents éléments.","Peikko, entreprise finlandaise, propose des connexions mécaniques pour des éléments en béton préfabriqué. Le climat finlandais ne permettant pas la réalisation de connexions par coulage in situ, ils ont développé des systèmes d’assemblages métalliques rendant la construction plus rapide et efficace. Par ailleurs, cette technologie permettrait aussi le démontage. Cependant, dans les produits actuels, du ciment est généralement coulé par-dessus les connecteurs métalliques gênant partiellement le futur démontage.\n\nLes connexions de poteaux boulonnées « Bolted Column Connection » sont un des produits démontables proposés par Peikko. D’autres produits sont disponibles sur le site internet du fabricant tels que des assemblages poteaux-poutres, ou des assemblages poteaux-poteaux…  L’ensemble de ces produits sont certifiés","Le projet de recherche RFCS Research project « REDUCE » propose une solution de plancher mixte démontable","Connecteurs pour façade rideau bois-verre démontable. Le connecteur RICON® s’utilise pour les assemblages poteaux-traverses des façades rideaux. Le connecteur FASCO® permet la mise en œuvre des vitrages sur les poteaux traverses. Ces connecteurs autorisent le démontage de la façade rideau.",null,"Cassette en composite pour bardage rapporté ventilé, fixations invisibles par accrochage.\nOptimisé en trame vertical, sous avis technique. ","Système de façade composé de rails métalliques verticaux fixés à la structure du bâtiment et d’un remplissage en matériau isolant. \n Façade démontable dont les composants peuvent être séparés pour être valorisés dans leurs différentes filières"]
[10,"Site source","Publication","Publication","Publication","Publication","Publication","Publication","Publication","Publication","Publication","Publication","Publication","Publication","Publication","Publication","Publication","Publication","Fabricant","Publication","Site spécialisé","Site spécialisé","Publication","Publication","Fabricant","Fabricant","Fabricant","Fabricant","Fabricant","Publication","Publication","Fabricant","Fabricant","Publication","Fabricant","Publication","Publication","Site spécialisé","Publication","Publication","Publication","Publication","Fabricant","Site spécialisé","Site spécialisé","Fabricant","Nobatek","Publication","Publication","Publication","Publication","Fabricant","Fabricant","Fabricant","Fabricant","Fabricant","Fabricant","Publication","Publication","Fabricant","Fabricant","Fabricant",null,"Fabricant","Publication","Fabricant","Revendeur","Fabricant","Fabricant","Fabricant","Fabricant","Fabricant","Publication","Revendeur","Site spécialisé","Publication","Fabricant","Fabricant","Publication","Fabricant","Publication","Publication","Publication","Fabricant","Kyushu University","Agriboard",null,"DEMODULOR","PEIKKO",null,"KNAPP","HALFEN","LAUDE","Façade F4"]
[11,"Liens","Transformable_building_structures","DfD_Guide_OfficeBldgs","DfD_Guide_OfficeBldgs","DfD_Guide_OfficeBldgs","DfD_Guide_OfficeBldgs","Transformable_building_structures","Transformable_building_structures","Transformable_building_structures.pdf","Transformable_building_structures","http://books.google.fr/books?id=n-kSIU8jIaUC&pg=PA69&lpg=PA69&dq=demountable+precast+system&source=bl&ots=PdOu-rCeF9&sig=Ir35YW_ruMVsFEKcsyVbMtdMlIw&hl=fr&sa=X&ei=lJcxU8GYJbCa0QWDlICYDA&ved=0CC4Q6AEwAA#v=onepage&q=demountable%20precast%20system&f=false","http://books.google.fr/books?id=n-kSIU8jIaUC&pg=PA69&lpg=PA69&dq=demountable+precast+system&source=bl&ots=PdOu-rCeF9&sig=Ir35YW_ruMVsFEKcsyVbMtdMlIw&hl=fr&sa=X&ei=lJcxU8GYJbCa0QWDlICYDA&ved=0CC4Q6AEwAA#v=onepage&q=demountable%20precast%20system&f=false","http://books.google.fr/books?id=n-kSIU8jIaUC&pg=PA69&lpg=PA69&dq=demountable+precast+system&source=bl&ots=PdOu-rCeF9&sig=Ir35YW_ruMVsFEKcsyVbMtdMlIw&hl=fr&sa=X&ei=lJcxU8GYJbCa0QWDlICYDA&ved=0CC4Q6AEwAA#v=onepage&q=demountable%20precast%20system&f=false","http://www.openprototype.com/projects/open1/features.html","http://www.openprototype.com/projects/open1/features.html","Design for Deconstruction - SEDA Design Guide for Scotland","Transformable_building_structures","http://www.legrand.fr/professionnels/les-coffrets-xl3-160-isolant_371.html","Transformable_building_structures","http://www.bois.com/decorer/bricoleurs/assemblages-classiques/assemblages-bout-bout","http://www.upct.es/~deyc/consulting.php","Transformable_building_structures","Transformable_building_structures","spaciotempo-cubiertas-desmontables.pdf","http://www.ergowall.com/produits.php","http://www.galco-cm.com/","http://www.dispano.fr/bois-decoratifs/cloisons-demontables-XA190","http://www.abcd-international.fr/fr/cloisons-demontables.html","DFD.pdf","CIB_W115_Conference_Proceedings_Pub_323","http://www.losberger.fr/?n=223-144#","http://www.malerba.fr/be-np-177-0-portes-bois-imposte-demontable-sur-cf12h-va-et-vient","http://www.bensonwood.com/about/timeline.cfm","http://www.gipen.fr/gamme-systemes-constructifs-professionnels/produits/ossature-bois-habitat-individuel.html#.Uzu5RPl_tzo","DFD.pdf","DFD.pdf","http://www.dexigner.com/news/19753","http://fire.nist.gov/bfrlpubs/build02/PDF/b02153.pdf","plainte avec réseaux.pdf","http://www.thermasteelcorp.com/","DFD.pdf","http://www.archiexpo.fr/prod/hunter-douglas/panneaux-grillages-bois-faux-plafonds-50316-609216.html","http://blog.bmykey.com/category/immobilier/design-interieur/page/12/","http://www.actineo.fr/reportage/quiksilver","http://www.alsacork.fr/boutique-online/mat%C3%A9riaux-annexes/plinthes","http://www.metaklett.de/technologie.html","DFD.pdf","DfD_16082010","DfD_16082010\nhttp://www.newsteelconstruction.com/wp/quicon-wins-contract-at-ikea/","ETSA_16-1.pdf","http://www.omegastructures.com/fr-FR/contenidos/65/toits.aspx","déchets-dde.pdf","http://www.uniform.it/uni-wood-brise-soleil/?lang=en","http://www.piveteaubois.com/e-Sales/esa/default.jsp?mainpage=GalleryView.jsp&utm_medium=GammeBardageBois&%40where.ParentCategoryID=btc_bardages&utm_source=Piproduits","http://www.carboneplus.be/fr/produits-d-isolation/decamat/","http://www.piveteaubois.com/e-Sales/esa/default.jsp?mainpage=GalleryView.jsp&utm_medium=GammeBardageBois&%40where.ParentCategoryID=btc_bardages&utm_source=Piproduits","DFD.pdf","http://www.systemed.fr/forum-bricolage/clou-a-deux-tetes-t45584.html","http://www.piveteaubois.com/e-Sales/esa/default.jsp?mainpage=GalleryView.jsp&denied=yes&%40where.ParentCategoryID=b2c_Terrasses&utm_source=PIProduit&utm_campaign=LesProduitsTerrasses","http://www.fixtoo.fr/index-famille-417100-lng-fr.html","http://www.lamello.com/fr/accueil/assemblage-du-bois/systeme-invis-mx.html","http://www.velcro.fr//","http://www.krinner.fr/","DFD.pdf","http://www.legrand.fr/presse/les-nouveaux-manchons-cab-3-de-reperage-et-d-isolation-une-innovation-legrand_1150.html","http://www.avenue-du-bois.fr/pied-de-poteau-hauteur-101.html","http://www.technopieux.com/fr/produits/pieux-visses/","http://www.luxtend.fr/page-Demontable-42.html","http://www.knauf-batiment.fr/chapitre/plafonds-demontables","http://www.piveteaubois.com/e-Sales/esa/default.jsp?mainpage=GalleryView.jsp&utm_medium=GammeBardageBois&%40where.ParentCategoryID=btc_bardages&utm_source=PIproduits","http://www.piveteaubois.com/e-Sales/esa/default.jsp?mainpage=GalleryView.jsp&utm_medium=GammeBardageBois&%40where.ParentCategoryID=btc_bardages&utm_source=Piproduits","Plumbing Systems.pdf","http://www.fubiz.net/2010/04/01/land-peel-furniture/","http://www.lemoniteur.fr/131-etat-et-collectivites/article/actualite/523298-une-rue-en-kit-pour-faciliter-les-travaux-en-sous-sol","Barkkume_Disassembly_and_DfD","http://www.piveteaubois.com/e-Sales/esa/default.jsp?mainpage=GalleryView.jsp&utm_medium=GammeBardageBois&%40where.ParentCategoryID=btc_bardages&utm_source=Piproduits","http://www.leroymerlin.fr/v3/p/produits/sol-pvc-aerotex-timeless-chene-gris-tarkett-4-m-e159189","32 DEVELOPMENT OF INDUSTRIALIZED, FLEXIBLE AND DEMOUNTABLE MULTI-FAMILY BUILDING IFD COLLECTIVE HOUSING","www.placo.fr/content/download/122585/1534247/file/A03.001a.pdf‎","DFD.pdf","Design_for_Disassembly-guide","Design_for_Disassembly-guide","http://www.piveteaubois.com/e-Sales/esa/default.jsp?mainpage=GalleryView.jsp&denied=yes&%40where.ParentCategoryID=b2c_Terrasses&utm_source=PIProduit&utm_campaign=LesProduitsTerrasses",null,null,"http://www.architecturebois.fr/1er-clip-demontable-pour-lames-de-terrasses-et-de-bardage/","https://mecd.fr/demodulor/ ","https://www.peikko.com/products/bolted-column-connections/overview/","https://www.steel-sci.com/assets/downloads/steel-reuse-event-8th-october-2019/9_overview_of_reduce_project.pdf","https://www.knapp-verbinder.com/fr/produits/facades-rideau-bois-verre/","https://www.halfen.com/fr/778/gamme-de-produit/construction/systemes-de-fixation/hcw-systeme-pour-mur-rideau/apercu/","http://www.laude.fr/nos-metiers/facade/cassette-longitude","https://www.facadef4.fr/"]
[12,"Images",null,null,null,null,null,null,null,null,null,null,null,null,null,null,null,null,null,null,null,null,null,null,null,null,null,null,null,null,null,null,"*"]
[13,"N°",{"$f":"COLUMN()-2","v":1},2,3,4,5,6,7,8,9,10,11,12,13,14,15,16,17,18,19,20,21,22,23,24,25,26,27,28,29,{"$f":"COLUMN()-2","v":30},31,32,33,34,35,36,37,38,39,40,41,42,43,44,45,46,47,48,49,50,51,52,{"$f":"COLUMN()-2","v":53},54,55,56,57,58,59,60,61,62,63,64,65,66,67,68,69,{"$f":"COLUMN()-2","v":70},71,72,73,74,75,76,77,78,79,80,81,82,112,113,114,115,116,117,118,119,120,121]
[null,null,3,4,5,6,7,8,9,10,11,12,13,14,15,16,17,18,19,21,22,23,24,25,26,27,28,30,31,32,33,35,36,38,39,40,41,42,43,45,47,48,49,50,51,52,53,54,55,56,57,59,60,61,62,63,64,65,66,68,70,72,73,74,75,76,81,82,83,84,85,86,87,88,91,92,93,94,95,96,97,98,99,100,101,102,103,104,105,106,107,108,109,110]

{"sheet":"stats","index":2,"n_rows":39,"n_cols":30,"rows_kept":39,"cut":false,"hidden":false,"merged":[]}
[]
[]
[null,null,"Site source","Fabricant",{"$f":"COUNTIF(listesource,D3)","v":31},{"$f":"E3/$E$11","v":0.38271604938271603},"Stade d'évolution","Recherche et Développement",{"$f":"COUNTIF(listediffusion,H3)","v":8},"Classe produit","Accessibilité",{"$f":"COUNTIF(listeclasse,K3)","v":0},{"$f":"L3/$L$27","v":0},"Type de solution","Elément",{"$f":"COUNTIF(listesolution,O3)","v":38},{"$f":"P3/$P$8","v":0.46341463414634149},"Typologie de bâtiments visés","Tout type",{"$f":"COUNTIF(listetypebat,S3)","v":67},null,"Matériaux","Métal",{"$f":"COUNTIF(listemateriau,W3)","v":28},{"$f":"X3/$X$28","v":0.34146341463414637},"Disponibilité","France",{"$f":"COUNTIF(listepays,AA3)","v":48},{"$f":"AB3/$AB$16","v":0.58536585365853655},"Allemagne"]
[null,null,null,"Publication",41,0.50617283950617287,null,"Diffusion limitée",{"$f":"COUNTIF(listediffusion,H4)","v":36},null,"Accessoire",2,2.4390243902439025E-2,null,"Complexe",{"$f":"COUNTIF(listesolution,O4)","v":28},{"$f":"P4/$P$8","v":0.34146341463414637},null,"Industriel",{"$f":"COUNTIF(listetypebat,S4)","v":6},null,null,"Divers",18,0.21951219512195122,null,"Inconnue",13,0.15853658536585366,"Belgique"]
[null,null,null,"Site spécialisé",6,7.407407407407407E-2,null,"Très diffusé",{"$f":"COUNTIF(listediffusion,H5)","v":38},null,"Assemblage",33,0.40243902439024393,null,"Système constructif",{"$f":"COUNTIF(listesolution,O5)","v":14},{"$f":"P5/$P$8","v":0.17073170731707318},null,"Structures légères",{"$f":"COUNTIF(listetypebat,S5)","v":2},null,null,"Bois",10,0.12195121951219512,null,"USA",8,9.7560975609756101E-2,"Espagne"]
[null,null,null,"Revendeur",2,2.4691358024691357E-2,null,null,null,null,"Canalisation",2,2.4390243902439025E-2,null,"Mode constructif",{"$f":"COUNTIF(listesolution,O6)","v":2},{"$f":"P6/$P$8","v":2.4390243902439025E-2},null,"Sauf habitat individuel",{"$f":"COUNTIF(listetypebat,S6)","v":6},null,null,"PVC",6,7.3170731707317069E-2,null,"USA, UK, Japon, Canada",3,3.6585365853658534E-2,"France"]
[null,null,null,"Nobatek",1,1.2345679012345678E-2,null,"TOTAL",{"$f":"SUM(I3:I5)","v":82},null,"Charpente",1,1.2195121951219513E-2,null,null,null,null,null,"Habitat individuel",{"$f":"COUNTIF(listetypebat,S7)","v":1},null,null,"Bois, Divers",2,2.4390243902439025E-2,null,"Pays-Bas",3,3.6585365853658534E-2,"Inconnue"]
[null,null,null,"Batiproduits",0,0,null,null,null,null,"Chauffage",1,1.2195121951219513E-2,null,"TOTAL",{"$f":"SUM(P3:P6)","v":82},null,null,null,null,null,null,"Liège naturel",1,1.2195121951219513E-2,null,"Belgique",2,2.4390243902439025E-2,"Japon"]
[null,null,null,"Forum",0,0,null,null,null,null,"Climatisation",0,0,null,null,null,null,null,"TOTAL",{"$f":"SUM(T3:T7)","v":82},null,null,"Béton, Métal",3,3.6585365853658534E-2,null,"UK",2,2.4390243902439025E-2,"Pays-Bas"]
[null,null,null,null,null,null,null,null,null,null,"Cloisonnement intérieur",1,1.2195121951219513E-2,null,null,null,null,null,null,null,null,null,"Velcro",2,2.4390243902439025E-2,null,"Allemagne",1,1.2195121951219513E-2,"UK"]
[null,null,null,"TOTAL",{"$f":"SUM(E3:E9)","v":81},null,null,null,null,null,"Couverture",1,1.2195121951219513E-2,null,null,null,null,null,null,null,null,null,"Béton",2,2.4390243902439025E-2,null,"Espagne",1,1.2195121951219513E-2,"USA"]
[null,null,null,null,null,null,null,null,null,null,"Electricité",2,2.4390243902439025E-2,null,null,null,null,null,null,null,null,null,"Bois, Métal",1,1.2195121951219513E-2,null,"Japon",1,1.2195121951219513E-2,"USA, UK, Japan, Canada"]
[null,null,null,null,null,null,null,null,null,null,"Fondation",4,4.878048780487805E-2,null,null,null,null,null,null,null,null,null,"Polycarbonate",1,1.2195121951219513E-2]
[null,null,null,null,null,null,null,null,null,null,"Isolation intérieure",0,0,null,null,null,null,null,null,null,null,null,"Bandes adhésives",1,1.2195121951219513E-2,null,"Europe",{"$f":"AB3+AB7+AB8+AB9+AB11+AB6+AB10","v":60},{"$f":"AB14/$AB$16","v":0.73170731707317072}]
[null,null,null,null,null,null,null,null,null,null,"Menuiserie extérieure",2,2.4390243902439025E-2,null,null,null,null,null,null,null,null,null,"Béton, Asphalte",1,1.2195121951219513E-2]
[null,null,null,null,null,null,null,null,null,null,"Menuiserie intérieure",2,2.4390243902439025E-2,null,null,null,null,null,null,null,null,null,"Caoutchouc",1,1.2195121951219513E-2,null,"TOTAL",{"$f":"SUM(AB3:AB13)","v":82}]
[null,null,null,null,null,null,null,null,null,null,"Plafond",5,6.097560975609756E-2,null,null,null,null,null,null,null,null,null,"Métal, PVC",0,0]
[null,null,null,null,null,null,null,null,null,null,"Protection solaire",1,1.2195121951219513E-2,null,null,null,null,null,null,null,null,null,"Non précisé",1,1.2195121951219513E-2]
[null,null,null,null,null,null,null,null,null,null,"Revêtement de sol",3,3.6585365853658534E-2,null,null,null,null,null,null,null,null,null,"Plâtre",1,1.2195121951219513E-2]
[null,null,null,null,null,null,null,null,null,null,"Revêtement extérieur",1,1.2195121951219513E-2,null,null,null,null,null,null,null,null,null,"Vitrage, aluminium, bois, plâtre",1,1.2195121951219513E-2]
[null,null,null,null,null,null,null,null,null,null,"Revêtement intérieur",6,7.3170731707317069E-2,null,null,null,null,null,null,null,null,null,"Vitrage, aluminium, bois, PVC",1,1.2195121951219513E-2]
[null,null,null,null,null,null,null,null,null,null,"Sanitaires",1,1.2195121951219513E-2,null,null,null,null,null,null,null,null,null,"Métal / résine plastique",1,1.2195121951219513E-2]
[null,null,null,null,null,null,null,null,null,null,"Sécurité",0,0]
[null,null,null,null,null,null,null,null,null,null,"Structure",14,0.17073170731707318,null,null,null,null,null,null,null,null,null,"Matières plastiques",{"$f":"$X$6+$X$11+$X$16+$X$19","v":10},{"$f":"X24/$X$28","v":0.12195121951219512}]
[null,null,null,null,null,null,null,null,null,null,"Ventilation",0,0,null,null,null,null,null,null,null,null,null,"Matières métalliques",{"$f":"$X$3+$X$21+$X$20+$X$17+$X$12+$X$9","v":34},{"$f":"X25/$X$28","v":0.41463414634146339}]
[null,null,null,null,null,null,null,null,null,null,null,null,null,null,null,null,null,null,null,null,null,null,"Matières d'origines naturelles",{"$f":"$X$5+$X$7+$X$8+$X$14+$X$17+$X$18+$X$19+$X$20+$X$22","v":18},{"$f":"X26/$X$28","v":0.21951219512195122}]
[null,null,null,null,null,null,null,null,null,null,"TOTAL",{"$f":"SUM(L3:L25)","v":82},null,null,null,null,null,null,null,null,null,null,null,null,{"$f":"1-Y24-Y25-Y26","v":0.24390243902439027}]
[null,null,null,null,null,null,null,null,null,null,null,null,null,null,null,null,null,null,null,null,null,null,"TOTAL",{"$f":"SUM(X3:X22)","v":82}]
[]
[]
[]
[]
[]
[]
[]
[]
[null,null,null,null,null,null,null,null,null,null,"Revêtements de surface",{"$f":"L7+L6+L10+L16","v":6},{"$f":"L37/$L$27","v":7.3170731707317069E-2}]
[null,null,null,null,null,null,null,null,null,null,"Second Œuvre",{"$f":"L11+L18+L19+L22+L24+L17+L12+L8+L21+L25+L15+L14","v":36},{"$f":"L38/$L$27","v":0.43902439024390244}]
[null,null,null,null,null,null,null,null,null,null,"CVC",{"$f":"L24+L18+L12","v":17},{"$f":"L39/$L$27","v":0.2073170731707317}]

{"sheet":"FormatFiche","index":3,"n_rows":17,"n_cols":8,"rows_kept":17,"cut":false,"hidden":false,"merged":[[3,4,3,5],[6,3,16,3],[10,5,12,7],[9,5,9,7],[8,5,8,6],[6,5,6,6],[7,5,7,6],[5,5,5,6],[4,4,4,7],[15,4,15,7],[16,4,16,7],[14,4,14,7],[3,3,4,3],[13,4,13,7],[3,6,3,7]]}
[]
[]
[]
[null,null,null,null,"Fiche Matériau N°",null,{"$f":"INDEX(OFFSET(listeproduit,Fiches!A19,0),MATCH($E$5,listeproduit,0))","v":1}]
[null,null,null,null,"Assemblage Poteau / Toit"]
[null,null,null,"Illustrations","Classe produit","Matériaux",null,"Source"]
[null,null,null,null,{"$f":"INDEX(OFFSET(listeproduit,Fiches!A8,0),MATCH($E$5,listeproduit,0))","v":"Assemblage"},{"$f":"INDEX(OFFSET(listeproduit,Fiches!A11,0),MATCH($E$5,listeproduit,0))","v":"Divers"},null,{"$f":"INDEX(OFFSET(listeproduit,Fiches!A16,0),MATCH($E$5,listeproduit,0))","v":"Publication"}]
[null,null,null,null,"Type de bâtiment visé","Disponibilité Pays",null,"Stade d'évolution"]
[null,null,null,null,{"$f":"INDEX(OFFSET(listeproduit,Fiches!A9,0),MATCH($E$5,listeproduit,0))","v":"Tout type"},{"$f":"INDEX(OFFSET(listeproduit,Fiches!A12,0),MATCH($E$5,listeproduit,0))","v":"Inconnue"},null,{"$f":"INDEX(OFFSET(listeproduit,Fiches!A13,0),MATCH($E$5,listeproduit,0))","v":"Diffusion limitée"}]
[null,null,null,null,"Type de solution","En quoi est-ce démontable ?"]
[null,null,null,null,{"$f":"INDEX(OFFSET(listeproduit,Fiches!$A$7,0),MATCH($E$5,listeproduit,0))","v":"Système constructif"},{"$f":"IF(INDEX(OFFSET(listeproduit,Fiches!A14,0),MATCH($E$5,listeproduit,0))=\"\",\"\",INDEX(OFFSET(listeproduit,Fiches!A14,0),MATCH($E$5,listeproduit,0)))","v":"Fixation mécanique par tige filetée"}]
[null,null,null,null,"Fabricant"]
[null,null,null,null,{"$f":"INDEX(OFFSET(listeproduit,Fiches!A10,0),MATCH($E$5,listeproduit,0))","v":"?"}]
[null,null,null,null,"Description technique"]
[null,null,null,null,{"$f":"IF(INDEX(OFFSET(listeproduit,Fiches!A15,0),MATCH($E$5,listeproduit,0))=\"/\",\"\",INDEX(OFFSET(listeproduit,Fiches!A15,0),MATCH($E$5,listeproduit,0)))","v":"La tige filetée a une durée de vie importante et permet de ne pas mettre en péril la structure assemblée en nécessitant un remplacement de l'élément assembleur."}]
[null,null,null,null,"Source documentaire"]
[null,null,null,null,{"$f":"IF(INDEX(OFFSET(listeproduit,Fiches!A17,0),MATCH($E$5,listeproduit,0))=\"\",\"\",INDEX(OFFSET(listeproduit,Fiches!A17,0),MATCH($E$5,listeproduit,0)))","v":"Transformable_building_structures"}]